Workbook

Sheet Orçamento
O4: UNIDADE ESCOLAR | X4: CÓDIGO INEP
O5: CENTRO DE ENSINO EM PERÍODO INTEGRAL JOSÉ EDUARDO DO COUTO | X5: 52024148
A7: Nmax | O7: OBRA | S7: DATA | X7: CIDADE
A8: =MAX($C$19:$C$254) -> 4 | O8: REFORMA | S8: 2020-05-26 | X8: ITAGUARI
O10: CRE | R10: ENDEREÇO | S10: REFERÊNCIA AGETOP | X10: REFERÊNCIA SINAPI
O11: CRE-ITABERAI | R11: RUA JOSE FERNANDES CARVALHARES 197 Nº 197 , CENTRO , CEP: 7665-000 | S11: ABR/19 | T11: DESONERADA | X11: MAR/20 | Y11: DESONERADA
O13: ÁREA EXISTENTE (M²) | R13: ÁREA A CONSTRUIR (M²) | S13: ÁREA A DEMOLIR (M²) | X13: ÁREA TOTAL CONSTRUÍDA (M²)
O14: 970.52 | X14: 970.52
L16: FILTRO | O16: PLANILHA ORÇAMENTÁRIA
A17: Nível E | B17: Save Nivel | C17: Nível C | D17: Altura | E17: n1 | F17: n2 | G17: n3 | H17: n4 | I17: n5 | J17: Czero | K17: Cnível | L17: ↓ | M17: Nível | N17: Nível Corrigido | O17: ITEM | P17: TABELA | Q17: CODIGO | R17: DESCRIÇÃO DOS SERVIÇOS | S17: UNID | T17: QUANT | U17: REPET | V17: QUANT TOTAL | W17: MAT | X17: MO | Y17: T.SERVIÇO UNIT | Z17: VALOR TOTAL | AA17: OBSERVAÇÕES¹
A18: =CHOOSE(1+LOG(1+2*(ORÇAMENTO.Nivel="Nível 1")+4*(ORÇAMENTO.Nivel="Nível 2")+8*(ORÇAMENTO.Nivel="Nível 3")+16*(ORÇAMENTO.Nivel="Nível 4")+32*(ORÇAMENTO.Nivel="Serviço"),2),0,1,2,3,4,"S") -> S | B18: =IF(OR(C18="s",C18=0),OFFSET(B18,-1,0),C18) -> Save Nivel | C18: =IF(OFFSET(C18,-1,0)="L",1,IF(OFFSET(C18,-1,0)=1,2,IF(OR(A18="s",A18=0),"S",IF(AND(OFFSET(C18,-1,0)=2,A18=4),3,IF(AND(OR(OFFSET(C18,-1,0)="s",OFFSET(C18,-1,0)=0),A18<>"s",A18>OFFSET(B18,-1,0)),OFFSET(B18,-1,0),A18))))) -> S | D18: =IF(OR(C18="S",C18=0),0,IF(ISERROR(K18),J18,SMALL(J18:K18,1))) -> 0 | E18: =IF($C18=1,OFFSET(E18,-1,0)+1,OFFSET(E18,-1,0)) -> n1 | F18: =IF($C18=1,0,IF($C18=2,OFFSET(F18,-1,0)+1,OFFSET(F18,-1,0))) -> n2 | G18: =IF(AND($C18<=2,$C18<>0),0,IF($C18=3,OFFSET(G18,-1,0)+1,OFFSET(G18,-1,0))) -> n3 | H18: =IF(AND($C18<=3,$C18<>0),0,IF($C18=4,OFFSET(H18,-1,0)+1,OFFSET(H18,-1,0))) -> n4 | I18: =IF(AND($C18<=4,$C18<>0),0,IF(AND($C18="S",$Y18>0),OFFSET(I18,-1,0)+1,OFFSET(I18,-1,0))) -> n5 | J18: =IF(OR($C18="S",$C18=0),0,MATCH(0,OFFSET($D18,1,$C18,ROW($C$254)-ROW($C18)),0)) -> 0 | K18: =IF(OR($C18="S",$C18=0),0,MATCH(OFFSET($D18,0,$C18)+1,OFFSET($D18,1,$C18,ROW($C$254)-ROW($C18)),0)) -> 0 | M18: Serviço | N18: Serviço | O18: - | P18: SINAPI | R18: (sem código) | S18: - | U18: REPET | V18: - | W18: 0 | X18: 0 | Y18: 0 | Z18: -
A19: 0 | C19: L | D19: =COUNTA(OFFSET(D19,1,0):D$254) -> 234 | E19: =LEFT(O20,1)-1 -> 0 | L19: F | M19: LOTE | N19: LOTE | O19: REFORMA - CENTRO DE ENSINO EM PERÍODO INTEGRAL JOSÉ EDUARDO DO COUTO | Z19: 0
A20: 1 | B20: =IF(OR(C20="s",C20=0),OFFSET(B20,-1,0),C20) -> 1 | C20: =IF(OFFSET(C20,-1,0)="L",1,IF(OFFSET(C20,-1,0)=1,2,IF(OR(A20="s",A20=0),"S",IF(AND(OFFSET(C20,-1,0)=2,A20=4),3,IF(AND(OR(OFFSET(C20,-1,0)="s",OFFSET(C20,-1,0)=0),A20<>"s",A20>OFFSET(B20,-1,0)),OFFSET(B20,-1,0),A20))))) -> 1 | D20: =IF(OR(C20="S",C20=0),0,IF(ISERROR(K20),J20,SMALL(J20:K20,1))) -> 234 | E20: =IF($C20=1,OFFSET(E20,-1,0)+1,OFFSET(E20,-1,0)) -> 1 | F20: =IF($C20=1,0,IF($C20=2,OFFSET(F20,-1,0)+1,OFFSET(F20,-1,0))) -> 0 | G20: =IF(AND($C20<=2,$C20<>0),0,IF($C20=3,OFFSET(G20,-1,0)+1,OFFSET(G20,-1,0))) -> 0 | H20: =IF(AND($C20<=3,$C20<>0),0,IF($C20=4,OFFSET(H20,-1,0)+1,OFFSET(H20,-1,0))) -> 0 | I20: 0 | J20: =IF(OR($C20="S",$C20=0),0,MATCH(0,OFFSET($D20,1,$C20,ROW($C$254)-ROW($C20)),0)) -> 234 | K20: =IF(OR($C20="S",$C20=0),0,MATCH(OFFSET($D20,0,$C20)+1,OFFSET($D20,1,$C20,ROW($C$254)-ROW($C20)),0)) ->  | L20: F | M20: Nível 1 | N20: Nível 1 | O20: 1. | P20: AGETOP | R20: REFORMA | S20: UN | T20: 1 | U20: 1 | V20: 1 | Y20: 0 | Z20: 0
A21: 2 | B21: =IF(OR(C21="s",C21=0),OFFSET(B21,-1,0),C21) -> 2 | C21: =IF(OFFSET(C21,-1,0)="L",1,IF(OFFSET(C21,-1,0)=1,2,IF(OR(A21="s",A21=0),"S",IF(AND(OFFSET(C21,-1,0)=2,A21=4),3,IF(AND(OR(OFFSET(C21,-1,0)="s",OFFSET(C21,-1,0)=0),A21<>"s",A21>OFFSET(B21,-1,0)),OFFSET(B21,-1,0),A21))))) -> 2 | D21: =IF(OR(C21="S",C21=0),0,IF(ISERROR(K21),J21,SMALL(J21:K21,1))) -> 25 | E21: =IF($C21=1,OFFSET(E21,-1,0)+1,OFFSET(E21,-1,0)) -> 1 | F21: =IF($C21=1,0,IF($C21=2,OFFSET(F21,-1,0)+1,OFFSET(F21,-1,0))) -> 1 | G21: =IF(AND($C21<=2,$C21<>0),0,IF($C21=3,OFFSET(G21,-1,0)+1,OFFSET(G21,-1,0))) -> 0 | H21: =IF(AND($C21<=3,$C21<>0),0,IF($C21=4,OFFSET(H21,-1,0)+1,OFFSET(H21,-1,0))) -> 0 | I21: 0 | J21: 233 | K21: 25 | M21: Nível 2 | N21: Nível 2 | O21: - | P21: AGETOP | R21: SERVIÇOS PRELIMINARES | S21: - | U21: 1 | V21: - | Y21: 0 | Z21: 0
A22: 3 | B22: 3 | C22: 3 | D22: 10 | E22: 1 | F22: 1 | G22: 1 | H22: 0 | I22: 0 | J22: 24 | K22: 10 | M22: Nível 3 | N22: Nível 3 | O22: - | P22: SINAPI | R22: CASA ZELADOR / NOVA SECRETARIA | S22: - | U22: 1 | V22: - | W22: 0 | X22: 0 | Y22: 0 | Z22: 0
A23: =CHOOSE(1+LOG(1+2*(ORÇAMENTO.Nivel="Nível 1")+4*(ORÇAMENTO.Nivel="Nível 2")+8*(ORÇAMENTO.Nivel="Nível 3")+16*(ORÇAMENTO.Nivel="Nível 4")+32*(ORÇAMENTO.Nivel="Serviço"),2),0,1,2,3,4,"S") -> S | B23: 3 | C23: S | D23: 0 | E23: 1 | F23: 1 | G23: 1 | H23: 0 | I23: 0 | J23: 0 | K23: 0 | M23: Serviço | N23: Serviço | O23: - | P23: AGETOP | Q23: 20112 | R23: DEM.PISO CERAM. INCLUS. RETIRADA DE CONTRAPISO SOBRE LASTRO CONC.C/TR.CB.E CARGA | S23: m2 | T23: 23.8 | U23: 1 | V23: 23.8 | Y23: 0 | Z23: 0
A24: S | B24: 3 | C24: S | D24: 0 | E24: 1 | F24: 1 | G24: 1 | H24: 0 | I24: 0 | J24: 0 | K24: 0 | M24: Serviço | N24: Serviço | O24: - | P24: AGETOP | Q24: 20121 | R24: DEM. MANUAL EM CONCR.SIMPLES C/TR.ATE CB.E CARGA (O.C.) | S24: m3 | T24: 1.02 | U24: 1 | V24: 1.02 | Y24: 0 | Z24: 0
A25: S | B25: =IF(OR(C25="s",C25=0),OFFSET(B25,-1,0),C25) -> 3 | C25: =IF(OFFSET(C25,-1,0)="L",1,IF(OFFSET(C25,-1,0)=1,2,IF(OR(A25="s",A25=0),"S",IF(AND(OFFSET(C25,-1,0)=2,A25=4),3,IF(AND(OR(OFFSET(C25,-1,0)="s",OFFSET(C25,-1,0)=0),A25<>"s",A25>OFFSET(B25,-1,0)),OFFSET(B25,-1,0),A25))))) -> S | D25: =IF(OR(C25="S",C25=0),0,IF(ISERROR(K25),J25,SMALL(J25:K25,1))) -> 0 | E25: =IF($C25=1,OFFSET(E25,-1,0)+1,OFFSET(E25,-1,0)) -> 1 | F25: =IF($C25=1,0,IF($C25=2,OFFSET(F25,-1,0)+1,OFFSET(F25,-1,0))) -> 1 | G25: =IF(AND($C25<=2,$C25<>0),0,IF($C25=3,OFFSET(G25,-1,0)+1,OFFSET(G25,-1,0))) -> 1 | H25: =IF(AND($C25<=3,$C25<>0),0,IF($C25=4,OFFSET(H25,-1,0)+1,OFFSET(H25,-1,0))) -> 0 | I25: =IF(AND($C25<=4,$C25<>0),0,IF(AND($C25="S",$Y25>0),OFFSET(I25,-1,0)+1,OFFSET(I25,-1,0))) -> 0 | J25: 0 | K25: 0 | M25: Serviço | N25: Serviço | O25: - | P25: SINAPI | Q25: 97622 | R25: DEMOLIÇÃO DE ALVENARIA DE BLOCO FURADO, DE FORMA MANUAL, SEM REAPROVEITAMENTO. AF_12/2017 | S25: M3 | T25: 1.49 | U25: 1 | V25: 1.49 | Y25: 0 | Z25: 0 | AA25: Referência: AGETOP - 20118
A26: S | B26: 3 | C26: S | D26: 0 | E26: 1 | F26: 1 | G26: 1 | H26: 0 | I26: 0 | J26: 0 | K26: 0 | M26: Serviço | N26: Serviço | O26: - | P26: SINAPI | Q26: 97644 | R26: REMOÇÃO DE PORTAS, DE FORMA MANUAL, SEM REAPROVEITAMENTO. AF_12/2017 | S26: M2 | T26: 11.55 | U26: 1 | V26: 11.55 | Y26: 0 | Z26: 0 | AA26: Referência: AGETOP - 20106
A27: S | B27: 3 | C27: S | D27: 0 | E27: 1 | F27: 1 | G27: 1 | H27: 0 | I27: 0 | J27: 0 | K27: 0 | M27: Serviço | N27: Serviço | O27: - | P27: SINAPI | Q27: 97645 | R27: REMOÇÃO DE JANELAS, DE FORMA MANUAL, SEM REAPROVEITAMENTO. AF_12/2017 | S27: M2 | T27: 4.2 | U27: 1 | V27: 4.2 | Y27: 0 | Z27: 0 | AA27: Referência: AGETOP - 20106
A28: S | B28: 3 | C28: S | D28: 0 | E28: 1 | F28: 1 | G28: 1 | H28: 0 | I28: 0 | J28: 0 | K28: 0 | M28: Serviço | N28: Serviço | O28: - | P28: AGETOP | Q28: 20137 | R28: DEMOLIÇAO BACIA SANITARIA C/ TRANSP. ATÉ CB. E CARGA | S28: Un | T28: 1 | U28: 1 | V28: 1 | Y28: 0 | Z28: 0
A29: S | B29: 3 | C29: S | D29: 0 | E29: 1 | F29: 1 | G29: 1 | H29: 0 | I29: 0 | J29: 0 | K29: 0 | M29: Serviço | N29: Serviço | O29: - | P29: AGETOP | Q29: 20141 | R29: DEMOLIÇAO DE CAIXA DESCARGA EXTERNA C/ TRANSP. ATÉ CB. E CARGA | S29: Un | T29: 1 | U29: 1 | V29: 1 | Y29: 0 | Z29: 0
A30: S | B30: 3 | C30: S | D30: 0 | E30: 1 | F30: 1 | G30: 1 | H30: 0 | I30: 0 | J30: 0 | K30: 0 | M30: Serviço | N30: Serviço | O30: - | P30: AGETOP | Q30: 20163 | R30: DEMOLIÇÃO DAS INSTALAÇÕES HIDROSANITÁRIAS E AFINS C/ TRANSP. ATÉ CB. E CARGA | S30: H | T30: 2 | U30: 1 | V30: 2 | Y30: 0 | Z30: 0
A31: S | B31: 3 | C31: S | D31: 0 | E31: 1 | F31: 1 | G31: 1 | H31: 0 | I31: 0 | J31: 0 | K31: 0 | M31: Serviço | N31: Serviço | O31: - | P31: AGETOP | Q31: 20138 | R31: DEMOLIÇAO DE LAVATÓRIO C/ TRANSP. ATÉ CB. E CARGA | S31: Un | T31: 1 | U31: 1 | V31: 1 | Y31: 0 | Z31: 0
A32: 3 | B32: 3 | C32: 3 | D32: 3 | E32: 1 | F32: 1 | G32: 2 | H32: 0 | I32: 0 | J32: 14 | K32: 3 | M32: Nível 3 | N32: Nível 3 | O32: - | P32: SINAPI | R32: ACESSO NOVA SECRETARIA | S32: - | U32: 1 | V32: - | Y32: 0 | Z32: 0
A33: S | B33: 3 | C33: S | D33: 0 | E33: 1 | F33: 1 | G33: 2 | H33: 0 | I33: 0 | J33: 0 | K33: 0 | M33: Serviço | N33: Serviço | O33: - | P33: SINAPI | Q33: 97622 | R33: DEMOLIÇÃO DE ALVENARIA DE BLOCO FURADO, DE FORMA MANUAL, SEM REAPROVEITAMENTO. AF_12/2017 | S33: M3 | T33: 0.67 | U33: 1 | V33: 0.67 | Y33: 0 | Z33: 0 | AA33: Referência: AGETOP - 20118
A34: S | B34: 3 | C34: S | D34: 0 | E34: 1 | F34: 1 | G34: 2 | H34: 0 | I34: 0 | J34: 0 | K34: 0 | M34: Serviço | N34: Serviço | O34: - | P34: AGETOP | Q34: 20121 | R34: DEM. MANUAL EM CONCR.SIMPLES C/TR.ATE CB.E CARGA (O.C.) | S34: m3 | T34: 3.43 | U34: 1 | V34: 3.43 | Y34: 0 | Z34: 0
A35: 3 | B35: 3 | C35: 3 | D35: 3 | E35: 1 | F35: 1 | G35: 3 | H35: 0 | I35: 0 | J35: 11 | K35: 3 | M35: Nível 3 | N35: Nível 3 | O35: - | P35: SINAPI | R35: ACESSO COLÉGIO / QUADRA | S35: - | U35: 1 | V35: - | Y35: 0 | Z35: 0
A36: S | B36: 3 | C36: S | D36: 0 | E36: 1 | F36: 1 | G36: 3 | H36: 0 | I36: 0 | J36: 0 | K36: 0 | M36: Serviço | N36: Serviço | O36: - | P36: SINAPI | Q36: 97622 | R36: DEMOLIÇÃO DE ALVENARIA DE BLOCO FURADO, DE FORMA MANUAL, SEM REAPROVEITAMENTO. AF_12/2017 | S36: M3 | T36: 1.12 | U36: 1 | V36: 1.12 | Y36: 0 | Z36: 0 | AA36: Referência: AGETOP - 20118
A37: S | B37: 3 | C37: S | D37: 0 | E37: 1 | F37: 1 | G37: 3 | H37: 0 | I37: 0 | J37: 0 | K37: 0 | M37: Serviço | N37: Serviço | O37: - | P37: SINAPI | Q37: 97644 | R37: REMOÇÃO DE PORTAS, DE FORMA MANUAL, SEM REAPROVEITAMENTO. AF_12/2017 | S37: M2 | T37: 5.62 | U37: 1 | V37: 5.62 | Y37: 0 | Z37: 0 | AA37: Referência: AGETOP - 20106
A38: 3 | B38: 3 | C38: 3 | D38: 2 | E38: 1 | F38: 1 | G38: 4 | H38: 0 | I38: 0 | J38: 8 | K38: 2 | M38: Nível 3 | N38: Nível 3 | O38: - | P38: SINAPI | R38: CALÇADAS | S38: - | U38: 1 | V38: - | Y38: 0 | Z38: 0
A39: S | B39: 3 | C39: S | D39: 0 | E39: 1 | F39: 1 | G39: 4 | H39: 0 | I39: 0 | J39: 0 | K39: 0 | M39: Serviço | N39: Serviço | O39: - | P39: AGETOP | Q39: 20121 | R39: DEM. MANUAL EM CONCR.SIMPLES C/TR.ATE CB.E CARGA (O.C.) | S39: m3 | T39: 17.82 | U39: 1 | V39: 17.82 | Y39: 0 | Z39: 0
A40: 3 | B40: 3 | C40: 3 | D40: 4 | E40: 1 | F40: 1 | G40: 5 | H40: 0 | I40: 0 | J40: 6 | K40: 4 | M40: Nível 3 | N40: Nível 3 | O40: - | P40: SINAPI | R40: INST. ELÉTRICAS | S40: - | U40: 1 | V40: - | Y40: 0 | Z40: 0
A41: S | B41: 3 | C41: S | D41: 0 | E41: 1 | F41: 1 | G41: 5 | H41: 0 | I41: 0 | J41: 0 | K41: 0 | M41: Serviço | N41: Serviço | O41: - | P41: SINAPI | Q41: 97661 | R41: REMOÇÃO DE CABOS ELÉTRICOS, DE FORMA MANUAL, SEM REAPROVEITAMENTO. AF_12/2017 | S41: M | T41: 3000 | U41: 1 | V41: 3000 | Y41: 0 | Z41: 0
A42: S | B42: 3 | C42: S | D42: 0 | E42: 1 | F42: 1 | G42: 5 | H42: 0 | I42: 0 | J42: 0 | K42: 0 | M42: Serviço | N42: Serviço | O42: - | P42: SINAPI | Q42: 97660 | R42: REMOÇÃO DE INTERRUPTORES/TOMADAS ELÉTRICAS, DE FORMA MANUAL, SEM REAPROVEITAMENTO. AF_12/2017 | S42: UN | T42: 65 | U42: 1 | V42: 65 | Y42: 0 | Z42: 0
A43: S | B43: 3 | C43: S | D43: 0 | E43: 1 | F43: 1 | G43: 5 | H43: 0 | I43: 0 | J43: 0 | K43: 0 | M43: Serviço | N43: Serviço | O43: - | P43: SINAPI | Q43: 97665 | R43: REMOÇÃO DE LUMINÁRIAS, DE FORMA MANUAL, SEM REAPROVEITAMENTO. AF_12/2017 | S43: UN | T43: 102 | U43: 1 | V43: 102 | Y43: 0 | Z43: 0
A44: =CHOOSE(1+LOG(1+2*(ORÇAMENTO.Nivel="Nível 1")+4*(ORÇAMENTO.Nivel="Nível 2")+8*(ORÇAMENTO.Nivel="Nível 3")+16*(ORÇAMENTO.Nivel="Nível 4")+32*(ORÇAMENTO.Nivel="Serviço"),2),0,1,2,3,4,"S") -> 3 | B44: 3 | C44: 3 | D44: 2 | E44: 1 | F44: 1 | G44: 6 | H44: 0 | I44: 0 | J44: 2 | M44: Nível 3 | N44: Nível 3 | O44: - | P44: SINAPI | R44: OUTROS | S44: - | U44: 1 | V44: - | Y44: 0 | Z44: 0
A45: S | B45: 3 | C45: S | D45: 0 | E45: 1 | F45: 1 | G45: 6 | H45: 0 | I45: 0 | J45: 0 | K45: 0 | M45: Serviço | N45: Serviço | O45: - | P45: AGETOP | Q45: 21301 | R45: PLACA DE OBRA PLOTADA EM CHAPA METÁLICA 26 , AFIXADA EM CAVALETES DE MADEIRA DE LEI (VIGOTAS 6X12CM) - PADRÃO GOINFRA | S45: m2 | T45: 7.5 | U45: 1 | V45: 7.5 | Y45: 0 | Z45: 0
A46: 2 | B46: 2 | C46: 2 | D46: 3 | E46: 1 | F46: 2 | G46: 0 | H46: 0 | I46: 0 | J46: 208 | K46: 3 | M46: Nível 2 | N46: Nível 2 | O46: - | P46: AGETOP | R46: TRANSPORTES | S46: - | U46: 1 | V46: - | Y46: 0 | Z46: 0
A47: S | B47: 2 | C47: S | D47: 0 | E47: 1 | F47: 2 | G47: 0 | H47: 0 | I47: 0 | J47: 0 | K47: 0 | M47: Serviço | N47: Serviço | O47: - | P47: SINAPI | Q47: 72900 | R47: TRANSPORTE DE ENTULHO COM CAMINHAO BASCULANTE 6 M3, RODOVIA PAVIMENTADA, DMT 0,5 A 1,0 KM | S47: M3 | T47: 31.97 | U47: 1 | V47: 31.97 | Y47: 0 | Z47: 0
A48: S | B48: 2 | C48: S | D48: 0 | E48: 1 | F48: 2 | G48: 0 | H48: 0 | I48: 0 | J48: 0 | K48: 0 | M48: Serviço | N48: Serviço | O48: - | P48: SINAPI | Q48: 72897 | R48: CARGA MANUAL DE ENTULHO EM CAMINHAO BASCULANTE 6 M3 | S48: M3 | T48: 31.97 | U48: 1 | V48: 31.97 | Y48: 0 | Z48: 0
A49: 2 | B49: 2 | C49: 2 | D49: 10 | E49: 1 | F49: 3 | G49: 0 | H49: 0 | I49: 0 | J49: 205 | K49: 10 | M49: Nível 2 | N49: Nível 2 | O49: - | P49: AGETOP | R49: SERVIÇO EM TERRA | S49: - | U49: 1 | V49: - | Y49: 0 | Z49: 0
A50: 3 | B50: 3 | C50: 3 | D50: 3 | E50: 1 | F50: 3 | G50: 1 | H50: 0 | I50: 0 | J50: 9 | K50: 3 | M50: Nível 3 | N50: Nível 3 | O50: - | P50: SINAPI | R50: INST. ELÉTRICAS | S50: - | U50: 1 | V50: - | Y50: 0 | Z50: 0
A51: S | B51: 3 | C51: S | D51: 0 | E51: 1 | F51: 3 | G51: 1 | H51: 0 | I51: 0 | J51: 0 | K51: 0 | M51: Serviço | N51: Serviço | O51: - | P51: SINAPI | Q51: 93358 | R51: ESCAVAÇÃO MANUAL DE VALA COM PROFUNDIDADE MENOR OU IGUAL A 1,30 M. AF_03/2016 | S51: M3 | T51: 12 | U51: 1 | V51: 12 | Y51: 0 | Z51: 0 | AA51: Referência: AGETOP - 40101
A52: S | B52: 3 | C52: S | D52: 0 | E52: 1 | F52: 3 | G52: 1 | H52: 0 | I52: 0 | J52: 0 | K52: 0 | M52: Serviço | N52: Serviço | O52: - | P52: SINAPI | Q52: 96995 | R52: REATERRO MANUAL APILOADO COM SOQUETE. AF_10/2017 | S52: M3 | T52: 12 | U52: 1 | V52: 12 | Y52: 0 | Z52: 0 | AA52: Referência: AGETOP - 40902
A53: 3 | B53: 3 | C53: 3 | D53: 3 | E53: 1 | F53: 3 | G53: 2 | H53: 0 | I53: 0 | J53: 6 | K53: 3 | M53: Nível 3 | N53: Nível 3 | O53: - | P53: SINAPI | R53: INST. HIDROSSANITÁRIAS | S53: - | U53: 1 | V53: - | Y53: 0 | Z53: 0
A54: S | B54: 3 | C54: S | D54: 0 | E54: 1 | F54: 3 | G54: 2 | H54: 0 | I54: 0 | J54: 0 | K54: 0 | M54: Serviço | N54: Serviço | O54: - | P54: SINAPI | Q54: 93358 | R54: ESCAVAÇÃO MANUAL DE VALA COM PROFUNDIDADE MENOR OU IGUAL A 1,30 M. AF_03/2016 | S54: M3 | T54: 6 | U54: 1 | V54: 6 | Y54: 0 | Z54: 0 | AA54: Referência: AGETOP - 40101
A55: S | B55: 3 | C55: S | D55: 0 | E55: 1 | F55: 3 | G55: 2 | H55: 0 | I55: 0 | J55: 0 | K55: 0 | M55: Serviço | N55: Serviço | O55: - | P55: SINAPI | Q55: 96995 | R55: REATERRO MANUAL APILOADO COM SOQUETE. AF_10/2017 | S55: M3 | T55: 6 | U55: 1 | V55: 6 | Y55: 0 | Z55: 0 | AA55: Referência: AGETOP - 40902
A56: 3 | B56: 3 | C56: 3 | D56: 3 | E56: 1 | F56: 3 | G56: 3 | H56: 0 | I56: 0 | J56: 3 | K56: 122 | M56: Nível 3 | N56: Nível 3 | O56: - | P56: SINAPI | R56: OUTROS | S56: - | U56: 1 | V56: - | Y56: 0 | Z56: 0
A57: =CHOOSE(1+LOG(1+2*(ORÇAMENTO.Nivel="Nível 1")+4*(ORÇAMENTO.Nivel="Nível 2")+8*(ORÇAMENTO.Nivel="Nível 3")+16*(ORÇAMENTO.Nivel="Nível 4")+32*(ORÇAMENTO.Nivel="Serviço"),2),0,1,2,3,4,"S") -> S | B57: 3 | C57: S | D57: 0 | E57: 1 | F57: 3 | G57: 3 | H57: 0 | I57: 0 | J57: 0 | K57: 0 | M57: Serviço | N57: Serviço | O57: - | P57: AGETOP | Q57: 41140 | R57: REGULARIZAÇÃO DO TERRENO SEM APILOAMENTO COM TRANSPORTE MANUAL DA TERRA ESCAVADA | S57: m2 | T57: 68.71 | U57: 1 | V57: 68.71 | Y57: 0 | Z57: 0
A58: S | B58: 3 | C58: S | D58: 0 | E58: 1 | F58: 3 | G58: 3 | H58: 0 | I58: 0 | J58: 0 | K58: 0 | M58: Serviço | N58: Serviço | O58: - | P58: AGETOP | Q58: 41002 | R58: APILOAMENTO | S58: m2 | T58: 68.71 | U58: 1 | V58: 68.71 | Y58: 0 | Z58: 0
A59: 2 | B59: 2 | C59: 2 | D59: 5 | E59: 1 | F59: 4 | G59: 0 | H59: 0 | I59: 0 | J59: 195 | K59: 5 | M59: Nível 2 | N59: Nível 2 | O59: - | P59: AGETOP | R59: FUNDAÇÕES E SONDAGENS | S59: - | U59: 1 | V59: - | Y59: 0 | Z59: 0
A60: 3 | B60: 3 | C60: 3 | D60: 4 | E60: 1 | F60: 4 | G60: 1 | H60: 0 | I60: 0 | J60: 4 | K60: 94 | M60: Nível 3 | N60: Nível 3 | O60: - | P60: SINAPI | R60: ESTACAS E BLOCOS | S60: - | U60: 1 | V60: - | Y60: 0 | Z60: 0
A61: S | B61: 3 | C61: S | D61: 0 | E61: 1 | F61: 4 | G61: 1 | H61: 0 | I61: 0 | J61: 0 | K61: 0 | M61: Serviço | N61: Serviço | O61: - | P61: SINAPI | Q61: 98230 | R61: ESTACA BROCA DE CONCRETO, DIÂMETRO DE 30 CM, PROFUNDIDADE DE ATÉ 3 M, ESCAVAÇÃO MANUAL COM TRADO CONCHA, NÃO ARMADA. AF_03/2018 | S61: M | T61: 30 | U61: 1 | V61: 30 | Y61: 0 | Z61: 0 | AA61: Referência: AGETOP - 50302
A62: S | B62: 3 | C62: S | D62: 0 | E62: 1 | F62: 4 | G62: 1 | H62: 0 | I62: 0 | J62: 0 | K62: 0 | M62: Serviço | N62: Serviço | O62: - | P62: SINAPI | Q62: 96546 | R62: ARMAÇÃO DE BLOCO, VIGA BALDRAME OU SAPATA UTILIZANDO AÇO CA-50 DE 10 MM - MONTAGEM. AF_06/2017 | S62: KG | T62: 72 | U62: 1 | V62: 72 | Y62: 0 | Z62: 0 | AA62: Referência: AGETOP - 52005
A63: S | B63: 3 | C63: S | D63: 0 | E63: 1 | F63: 4 | G63: 1 | H63: 0 | I63: 0 | J63: 0 | K63: 0 | M63: Serviço | N63: Serviço | O63: - | P63: SINAPI | Q63: 96543 | R63: ARMAÇÃO DE BLOCO, VIGA BALDRAME E SAPATA UTILIZANDO AÇO CA-60 DE 5 MM - MONTAGEM. AF_06/2017 | S63: KG | T63: 22.5 | U63: 1 | V63: 22.5 | Y63: 0 | Z63: 0 | AA63: Referência: AGETOP - 52014
A64: =CHOOSE(1+LOG(1+2*(ORÇAMENTO.Nivel="Nível 1")+4*(ORÇAMENTO.Nivel="Nível 2")+8*(ORÇAMENTO.Nivel="Nível 3")+16*(ORÇAMENTO.Nivel="Nível 4")+32*(ORÇAMENTO.Nivel="Serviço"),2),0,1,2,3,4,"S") -> 2 | B64: 2 | C64: 2 | D64: 71 | E64: 1 | F64: 5 | G64: 0 | H64: 0 | I64: 0 | J64: 190 | K64: 71 | M64: Nível 2 | N64: Nível 2 | O64: - | R64: INSTALAÇÕES ELÉTRICAS | S64: - | U64: 1 | V64: - | Y64: 0 | Z64: 0
A65: S | B65: 2 | C65: S | D65: 0 | E65: 1 | F65: 5 | G65: 0 | H65: 0 | I65: 0 | J65: 0 | K65: 0 | M65: Serviço | N65: Serviço | O65: - | P65: AGETOP | Q65: 70351 | R65: BRACADEIRA METALICA TIPO "U" DIAM. 3/4" | S65: Un | T65: 527 | U65: 1 | V65: 527 | Y65: 0 | Z65: 0
A66: S | B66: 2 | C66: S | D66: 0 | E66: 1 | F66: 5 | G66: 0 | H66: 0 | I66: 0 | J66: 0 | K66: 0 | M66: Serviço | N66: Serviço | O66: - | P66: AGETOP | Q66: 70352 | R66: BRACADEIRA METALICA TIPO "U" DIAM. 1" | S66: Un | T66: 145 | U66: 1 | V66: 145 | Y66: 0 | Z66: 0
A67: S | B67: 2 | C67: S | D67: 0 | E67: 1 | F67: 5 | G67: 0 | H67: 0 | I67: 0 | J67: 0 | K67: 0 | M67: Serviço | N67: Serviço | O67: - | P67: AGETOP | Q67: 70354 | R67: BRACADEIRA METALICA TIPO "U" DIAM. 1.1/2" | S67: Un | T67: 10 | U67: 1 | V67: 10 | Y67: 0 | Z67: 0
A68: S | B68: 2 | C68: S | D68: 0 | E68: 1 | F68: 5 | G68: 0 | H68: 0 | I68: 0 | J68: 0 | K68: 0 | M68: Serviço | N68: Serviço | O68: - | P68: AGETOP | Q68: 70355 | R68: BRACADEIRA METALICA TIPO "U" DIAM. 2" | S68: Un | T68: 6 | U68: 1 | V68: 6 | Y68: 0 | Z68: 0
A69: S | B69: 2 | C69: S | D69: 0 | E69: 1 | F69: 5 | G69: 0 | H69: 0 | I69: 0 | J69: 0 | K69: 0 | M69: Serviço | N69: Serviço | O69: - | P69: AGETOP | Q69: 70421 | R69: BUCHA E ARRUELA METALICA DIAM. 3/4" | S69: PR | T69: 1100 | U69: 1 | V69: 1100 | Y69: 0 | Z69: 0
A70: S | B70: 2 | C70: S | D70: 0 | E70: 1 | F70: 5 | G70: 0 | H70: 0 | I70: 0 | J70: 0 | K70: 0 | M70: Serviço | N70: Serviço | O70: - | P70: AGETOP | Q70: 70422 | R70: BUCHA E ARRUELA METALICA DIAM. 1" | S70: PR | T70: 270 | U70: 1 | V70: 270 | Y70: 0 | Z70: 0
A71: S | B71: 2 | C71: S | D71: 0 | E71: 1 | F71: 5 | G71: 0 | H71: 0 | I71: 0 | J71: 0 | K71: 0 | M71: Serviço | N71: Serviço | O71: - | P71: AGETOP | Q71: 70424 | R71: BUCHA E ARRUELA METALICA DIAM. 1.1/2" | S71: PR | T71: 20 | U71: 1 | V71: 20 | Y71: 0 | Z71: 0
A72: S | B72: 2 | C72: S | D72: 0 | E72: 1 | F72: 5 | G72: 0 | H72: 0 | I72: 0 | J72: 0 | K72: 0 | M72: Serviço | N72: Serviço | O72: - | P72: AGETOP | Q72: 70425 | R72: BUCHA E ARRUELA METALICA DIAM. 2" | S72: PR | T72: 12 | U72: 1 | V72: 12 | Y72: 0 | Z72: 0
A73: S | B73: 2 | C73: S | D73: 0 | E73: 1 | F73: 5 | G73: 0 | H73: 0 | I73: 0 | J73: 0 | K73: 0 | M73: Serviço | N73: Serviço | O73: - | P73: AGETOP | Q73: 71861 | R73: PARAFUSO P/BUCHA S-6 | S73: Un | T73: 860 | U73: 1 | V73: 860 | Y73: 0 | Z73: 0
A74: S | B74: 2 | C74: S | D74: 0 | E74: 1 | F74: 5 | G74: 0 | H74: 0 | I74: 0 | J74: 0 | K74: 0 | M74: Serviço | N74: Serviço | O74: - | P74: SINAPI | Q74: 96971 | R74: CORDOALHA DE COBRE NU 16 MM², NÃO ENTERRADA, COM ISOLADOR - FORNECIMENTO E INSTALAÇÃO. AF_12/2017 | S74: M | T74: 12 | U74: 1 | V74: 12 | Y74: 0 | Z74: 0 | AA74: Referência: AGETOP - 70541
A75: S | B75: 2 | C75: S | D75: 0 | E75: 1 | F75: 5 | G75: 0 | H75: 0 | I75: 0 | J75: 0 | K75: 0 | M75: Serviço | N75: Serviço | O75: - | P75: SINAPI | Q75: 91926 | R75: CABO DE COBRE FLEXÍVEL ISOLADO, 2,5 MM², ANTI-CHAMA 450/750 V, PARA CIRCUITOS TERMINAIS - FORNECIMENTO E INSTALAÇÃO. AF_12/2015 | S75: M | T75: 3500 | U75: 1 | V75: 3500 | Y75: 0 | Z75: 0 | AA75: Referência: AGETOP - 70563
A76: S | B76: 2 | C76: S | D76: 0 | E76: 1 | F76: 5 | G76: 0 | H76: 0 | I76: 0 | J76: 0 | K76: 0 | M76: Serviço | N76: Serviço | O76: - | P76: SINAPI | Q76: 91928 | R76: CABO DE COBRE FLEXÍVEL ISOLADO, 4 MM², ANTI-CHAMA 450/750 V, PARA CIRCUITOS TERMINAIS - FORNECIMENTO E INSTALAÇÃO. AF_12/2015 | S76: M | T76: 530 | U76: 1 | V76: 530 | Y76: 0 | Z76: 0 | AA76: Referência: AGETOP - 70564
A77: S | B77: 2 | C77: S | D77: 0 | E77: 1 | F77: 5 | G77: 0 | H77: 0 | I77: 0 | J77: 0 | K77: 0 | M77: Serviço | N77: Serviço | O77: - | P77: SINAPI | Q77: 91931 | R77: CABO DE COBRE FLEXÍVEL ISOLADO, 6 MM², ANTI-CHAMA 0,6/1,0 KV, PARA CIRCUITOS TERMINAIS - FORNECIMENTO E INSTALAÇÃO. AF_12/2015 | S77: M | T77: 1200 | U77: 1 | V77: 1200 | Y77: 0 | Z77: 0 | AA77: Referência: AGETOP - 70583
A78: S | B78: 2 | C78: S | D78: 0 | E78: 1 | F78: 5 | G78: 0 | H78: 0 | I78: 0 | J78: 0 | K78: 0 | M78: Serviço | N78: Serviço | O78: - | P78: SINAPI | Q78: 92980 | R78: CABO DE COBRE FLEXÍVEL ISOLADO, 10 MM², ANTI-CHAMA 0,6/1,0 KV, PARA DISTRIBUIÇÃO - FORNECIMENTO E INSTALAÇÃO. AF_12/2015 | S78: M | T78: 50 | U78: 1 | V78: 50 | Y78: 0 | Z78: 0
A79: S | B79: 2 | C79: S | D79: 0 | E79: 1 | F79: 5 | G79: 0 | H79: 0 | I79: 0 | J79: 0 | K79: 0 | M79: Serviço | N79: Serviço | O79: - | P79: SINAPI | Q79: 92982 | R79: CABO DE COBRE FLEXÍVEL ISOLADO, 16 MM², ANTI-CHAMA 0,6/1,0 KV, PARA DISTRIBUIÇÃO - FORNECIMENTO E INSTALAÇÃO. AF_12/2015 | S79: M | T79: 120 | U79: 1 | V79: 120 | Y79: 0 | Z79: 0
A80: S | B80: 2 | C80: S | D80: 0 | E80: 1 | F80: 5 | G80: 0 | H80: 0 | I80: 0 | J80: 0 | K80: 0 | M80: Serviço | N80: Serviço | O80: - | P80: SINAPI | Q80: 92986 | R80: CABO DE COBRE FLEXÍVEL ISOLADO, 35 MM², ANTI-CHAMA 0,6/1,0 KV, PARA DISTRIBUIÇÃO - FORNECIMENTO E INSTALAÇÃO. AF_12/2015 | S80: M | T80: 100 | U80: 1 | V80: 100 | Y80: 0 | Z80: 0 | AA80: Referência: AGETOP - 70512
A81: S | B81: 2 | C81: S | D81: 0 | E81: 1 | F81: 5 | G81: 0 | H81: 0 | I81: 0 | J81: 0 | K81: 0 | M81: Serviço | N81: Serviço | O81: - | P81: AGETOP | Q81: 70645 | R81: CAIXA DE PASSAGEM METÁLICA DE EMBUTIR 15X15X8 CM | S81: Un | T81: 2 | U81: 1 | V81: 2 | Y81: 0 | Z81: 0
A82: S | B82: 2 | C82: S | D82: 0 | E82: 1 | F82: 5 | G82: 0 | H82: 0 | I82: 0 | J82: 0 | K82: 0 | M82: Serviço | N82: Serviço | O82: - | P82: AGETOP | Q82: 70646 | R82: CAIXA DE PASSAGEM METÁLICA DE EMBUTIR 20X20X10 CM | S82: Un | T82: 1 | U82: 1 | V82: 1 | Y82: 0 | Z82: 0
A83: S | B83: 2 | C83: S | D83: 0 | E83: 1 | F83: 5 | G83: 0 | H83: 0 | I83: 0 | J83: 0 | K83: 0 | M83: Serviço | N83: Serviço | O83: - | P83: SINAPI | Q83: 92866 | R83: CAIXA SEXTAVADA 3" X 3", METÁLICA, INSTALADA EM LAJE - FORNECIMENTO E INSTALAÇÃO. AF_12/2015 | S83: UN | T83: 121 | U83: 1 | V83: 121 | Y83: 0 | Z83: 0 | AA83: Referência: AGETOP - 70680
A84: S | B84: 2 | C84: S | D84: 0 | E84: 1 | F84: 5 | G84: 0 | H84: 0 | I84: 0 | J84: =IF(OR($C84="S",$C84=0),0,MATCH(0,OFFSET($D84,1,$C84,ROW($C$254)-ROW($C84)),0)) -> 0 | K84: =IF(OR($C84="S",$C84=0),0,MATCH(OFFSET($D84,0,$C84)+1,OFFSET($D84,1,$C84,ROW($C$254)-ROW($C84)),0)) -> 0 | M84: Serviço | N84: Serviço | O84: - | P84: SINAPI | Q84: 92868 | R84: CAIXA RETANGULAR 4" X 2" MÉDIA (1,30 M DO PISO), METÁLICA, INSTALADA EM PAREDE - FORNECIMENTO E INSTALAÇÃO. AF_12/2015 | S84: UN | T84: 54 | U84: 1 | V84: 54 | Y84: 0 | Z84: 0 | AA84: Referência: AGETOP - 70691
A85: S | B85: 2 | C85: S | D85: 0 | E85: 1 | F85: 5 | G85: 0 | H85: 0 | I85: 0 | J85: 0 | K85: 0 | M85: Serviço | N85: Serviço | O85: - | P85: SINAPI | Q85: 97893 | R85: CAIXA ENTERRADA ELÉTRICA RETANGULAR, EM ALVENARIA COM BLOCOS DE CONCRETO, FUNDO COM BRITA, DIMENSÕES INTERNAS: 0,8X0,8X0,6 M. AF_05/2018 | S85: UN | T85: 2 | U85: 1 | V85: 2 | Y85: 0 | Z85: 0
A86: S | B86: 2 | C86: S | D86: 0 | E86: 1 | F86: 5 | G86: 0 | H86: 0 | I86: 0 | J86: 0 | K86: 0 | M86: Serviço | N86: Serviço | O86: - | P86: AGETOP | Q86: 70713 | R86: CAIXA DE PASSAGEM 40X40X50CM FUNDO DE BRITA SEM TAMPA | S86: Un | T86: 9 | U86: 1 | V86: 9 | Y86: 0 | Z86: 0
A87: S | B87: 2 | C87: S | D87: 0 | E87: 1 | F87: 5 | G87: 0 | H87: 0 | I87: 0 | J87: 0 | K87: 0 | M87: Serviço | N87: Serviço | O87: - | P87: AGETOP | Q87: 70720 | R87: CAIXA METÁLICA PARA MEDIDOR POLIFÁSICO PADRÃO ENEL 500X380X166MM | S87: Un | T87: 1 | U87: 1 | V87: 1 | Y87: 0 | Z87: 0
A88: S | B88: 2 | C88: S | D88: 0 | E88: 1 | F88: 5 | G88: 0 | H88: 0 | I88: 0 | J88: 0 | K88: 0 | M88: Serviço | N88: Serviço | O88: - | P88: AGETOP | Q88: 70926 | R88: CONDULETE DE PVC - ADAPTADOR DE SAÍDA 1" | S88: un | T88: 13 | U88: 1 | V88: 13 | Y88: 0 | Z88: 0
A89: S | B89: 2 | C89: S | D89: 0 | E89: 1 | F89: 5 | G89: 0 | H89: 0 | I89: 0 | J89: 0 | K89: 0 | M89: Serviço | N89: Serviço | O89: - | P89: AGETOP | Q89: 70930 | R89: CONDULETE METÁLICO - ADAPTADOR DE SAÍDA 3/4" | S89: un | T89: 91 | U89: 1 | V89: 91 | Y89: 0 | Z89: 0
A90: S | B90: 2 | C90: S | D90: 0 | E90: 1 | F90: 5 | G90: 0 | H90: 0 | I90: 0 | J90: 0 | K90: 0 | M90: Serviço | N90: Serviço | O90: - | P90: SINAPI | Q90: 93654 | R90: DISJUNTOR MONOPOLAR TIPO DIN, CORRENTE NOMINAL DE 16A - FORNECIMENTO E INSTALAÇÃO. AF_04/2016 | S90: UN | T90: 52 | U90: 1 | V90: 52 | Y90: 0 | Z90: 0
A91: S | B91: 2 | C91: S | D91: 0 | E91: 1 | F91: 5 | G91: 0 | H91: 0 | I91: 0 | J91: 0 | K91: 0 | M91: Serviço | N91: Serviço | O91: - | P91: SINAPI | Q91: 93656 | R91: DISJUNTOR MONOPOLAR TIPO DIN, CORRENTE NOMINAL DE 25A - FORNECIMENTO E INSTALAÇÃO. AF_04/2016 | S91: UN | T91: 4 | U91: 1 | V91: 4 | Y91: 0 | Z91: 0
A92: S | B92: 2 | C92: S | D92: 0 | E92: 1 | F92: 5 | G92: 0 | H92: 0 | I92: 0 | J92: 0 | K92: 0 | M92: Serviço | N92: Serviço | O92: - | P92: SINAPI | Q92: 93668 | R92: DISJUNTOR TRIPOLAR TIPO DIN, CORRENTE NOMINAL DE 16A - FORNECIMENTO E INSTALAÇÃO. AF_04/2016 | S92: UN | T92: 2 | U92: 1 | V92: 2 | Y92: 0 | Z92: 0
A93: S | B93: 2 | C93: S | D93: 0 | E93: 1 | F93: 5 | G93: 0 | H93: 0 | I93: 0 | J93: 0 | K93: 0 | M93: Serviço | N93: Serviço | O93: - | P93: SINAPI | Q93: 93671 | R93: DISJUNTOR TRIPOLAR TIPO DIN, CORRENTE NOMINAL DE 32A - FORNECIMENTO E INSTALAÇÃO. AF_04/2016 | S93: UN | T93: 6 | U93: 1 | V93: 6 | Y93: 0 | Z93: 0 | AA93: Referência: AGETOP - 71173
A94: S | B94: 2 | C94: S | D94: 0 | E94: 1 | F94: 5 | G94: 0 | H94: 0 | I94: 0 | J94: 0 | K94: 0 | M94: Serviço | N94: Serviço | O94: - | P94: SINAPI | Q94: 93673 | R94: DISJUNTOR TRIPOLAR TIPO DIN, CORRENTE NOMINAL DE 50A - FORNECIMENTO E INSTALAÇÃO. AF_04/2016 | S94: UN | T94: 2 | U94: 1 | V94: 2 | Y94: 0 | Z94: 0 | AA94: Referência: AGETOP - 71174
A95: S | B95: 2 | C95: S | D95: 0 | E95: 1 | F95: 5 | G95: 0 | H95: 0 | I95: 0 | J95: 0 | K95: 0 | M95: Serviço | N95: Serviço | O95: - | P95: SINAPI | Q95: 74130/5 | R95: DISJUNTOR TERMOMAGNETICO TRIPOLAR PADRAO NEMA (AMERICANO) 60 A 100A 240V, FORNECIMENTO E INSTALACAO | S95: UN | T95: 3 | U95: 1 | V95: 3 | Y95: 0 | Z95: 0
A96: S | B96: 2 | C96: S | D96: 0 | E96: 1 | F96: 5 | G96: 0 | H96: 0 | I96: 0 | J96: 0 | K96: 0 | M96: Serviço | N96: Serviço | O96: - | P96: AGETOP | Q96: 71184 | R96: DISPOSITIVO DE PROTEÇÃO CONTRA SURTOS (D.P.S.) 275V DE 8 A 40KA | S96: Un | T96: 4 | U96: 1 | V96: 4 | Y96: 0 | Z96: 0
A97: S | B97: 2 | C97: S | D97: 0 | E97: 1 | F97: 5 | G97: 0 | H97: 0 | I97: 0 | J97: 0 | K97: 0 | M97: Serviço | N97: Serviço | O97: - | P97: SINAPI | Q97: 91844 | R97: ELETRODUTO FLEXÍVEL CORRUGADO, PVC, DN 25 MM (3/4"), PARA CIRCUITOS TERMINAIS, INSTALADO EM LAJE - FORNECIMENTO E INSTALAÇÃO. AF_12/2015 | S97: M | T97: 440 | U97: 1 | V97: 440 | Y97: 0 | Z97: 0
A98: S | B98: 2 | C98: S | D98: 0 | E98: 1 | F98: 5 | G98: 0 | H98: 0 | I98: 0 | J98: 0 | K98: 0 | M98: Serviço | N98: Serviço | O98: - | P98: SINAPI | Q98: 91846 | R98: ELETRODUTO FLEXÍVEL CORRUGADO, PVC, DN 32 MM (1"), PARA CIRCUITOS TERMINAIS, INSTALADO EM LAJE - FORNECIMENTO E INSTALAÇÃO. AF_12/2015 | S98: M | T98: 20 | U98: 1 | V98: 20 | Y98: 0 | Z98: 0
A99: S | B99: 2 | C99: S | D99: 0 | E99: 1 | F99: 5 | G99: 0 | H99: 0 | I99: 0 | J99: 0 | K99: 0 | M99: Serviço | N99: Serviço | O99: - | P99: AGETOP | Q99: 71197 | R99: ELETRODUTO PVC FLEXÍVEL - MANGUEIRA CORRUGADA REFORÇADA - DIAM. 50MM | S99: M | T99: 126 | U99: 1 | V99: 126 | Y99: 0 | Z99: 0
A100: S | B100: 2 | C100: S | D100: 0 | E100: 1 | F100: 5 | G100: 0 | H100: 0 | I100: 0 | J100: 0 | K100: 0 | M100: Serviço | N100: Serviço | O100: - | P100: SINAPI | Q100: 91871 | R100: ELETRODUTO RÍGIDO ROSCÁVEL, PVC, DN 25 MM (3/4"), PARA CIRCUITOS TERMINAIS, INSTALADO EM PAREDE - FORNECIMENTO E INSTALAÇÃO. AF_12/2015 | S100: M | T100: 460 | U100: 1 | V100: 460 | Y100: 0 | Z100: 0 | AA100: Referência: AGETOP - 71201
A101: S | B101: 2 | C101: S | D101: 0 | E101: 1 | F101: 5 | G101: 0 | H101: 0 | I101: 0 | J101: 0 | K101: 0 | M101: Serviço | N101: Serviço | O101: - | P101: SINAPI | Q101: 91872 | R101: ELETRODUTO RÍGIDO ROSCÁVEL, PVC, DN 32 MM (1"), PARA CIRCUITOS TERMINAIS, INSTALADO EM PAREDE - FORNECIMENTO E INSTALAÇÃO. AF_12/2015 | S101: M | T101: 175 | U101: 1 | V101: 175 | Y101: 0 | Z101: 0 | AA101: Referência: AGETOP - 71202
A102: S | B102: 2 | C102: S | D102: 0 | E102: 1 | F102: 5 | G102: 0 | H102: 0 | I102: 0 | J102: 0 | K102: 0 | M102: Serviço | N102: Serviço | O102: - | P102: SINAPI | Q102: 93008 | R102: ELETRODUTO RÍGIDO ROSCÁVEL, PVC, DN 50 MM (1 1/2") - FORNECIMENTO E INSTALAÇÃO. AF_12/2015 | S102: M | T102: 30 | U102: 1 | V102: 30 | Y102: 0 | Z102: 0
A103: S | B103: 2 | C103: S | D103: 0 | E103: 1 | F103: 5 | G103: 0 | H103: 0 | I103: 0 | J103: 0 | K103: 0 | M103: Serviço | N103: Serviço | O103: - | P103: SINAPI | Q103: 93009 | R103: ELETRODUTO RÍGIDO ROSCÁVEL, PVC, DN 60 MM (2") - FORNECIMENTO E INSTALAÇÃO. AF_12/2015 | S103: M | T103: 20 | U103: 1 | V103: 20 | Y103: 0 | Z103: 0
A104: S | B104: 2 | C104: S | D104: 0 | E104: 1 | F104: 5 | G104: 0 | H104: 0 | I104: 0 | J104: 0 | K104: 0 | M104: Serviço | N104: Serviço | O104: - | P104: AGETOP | Q104: 71321 | R104: FITA DE AUTO FUSAO, ROLO E 10,00 MM | S104: Un | T104: 30 | U104: 1 | V104: 30 | Y104: 0 | Z104: 0
A105: S | B105: 2 | C105: S | D105: 0 | E105: 1 | F105: 5 | G105: 0 | H105: 0 | I105: 0 | J105: 0 | K105: 0 | M105: Serviço | N105: Serviço | O105: - | P105: AGETOP | Q105: 71331 | R105: FITA ISOLANTE, ROLO DE 20,00 M | S105: Un | T105: 5 | U105: 1 | V105: 5 | Y105: 0 | Z105: 0
A106: S | B106: 2 | C106: S | D106: 0 | E106: 1 | F106: 5 | G106: 0 | H106: 0 | I106: 0 | J106: 0 | K106: 0 | M106: Serviço | N106: Serviço | O106: - | P106: AGETOP | Q106: 71381 | R106: HASTE REV.COBRE(COPPERWELD) 5/8" X 3,00 M C/CONECTOR | S106: Un | T106: 3 | U106: 1 | V106: 3 | Y106: 0 | Z106: 0
A107: S | B107: 2 | C107: S | D107: 0 | E107: 1 | F107: 5 | G107: 0 | H107: 0 | I107: 0 | J107: 0 | K107: 0 | M107: Serviço | N107: Serviço | O107: - | P107: AGETOP | Q107: 71450 | R107: INTERRUPTOR DIFERENCIAL RESIDUAL (D.R.) BIPOLAR DE 25A-30mA | S107: Un | T107: 8 | U107: 1 | V107: 8 | Y107: 0 | Z107: 0
A108: S | B108: 2 | C108: S | D108: 0 | E108: 1 | F108: 5 | G108: 0 | H108: 0 | I108: 0 | J108: 0 | K108: 0 | M108: Serviço | N108: Serviço | O108: - | P108: SINAPI | Q108: 91953 | R108: INTERRUPTOR SIMPLES (1 MÓDULO), 10A/250V, INCLUINDO SUPORTE E PLACA - FORNECIMENTO E INSTALAÇÃO. AF_12/2015 | S108: UN | T108: 10 | U108: 1 | V108: 10 | Y108: 0 | Z108: 0 | AA108: Referência: AGETOP - 71440
A109: S | B109: 2 | C109: S | D109: 0 | E109: 1 | F109: 5 | G109: 0 | H109: 0 | I109: 0 | J109: 0 | K109: 0 | M109: Serviço | N109: Serviço | O109: - | P109: SINAPI | Q109: 91959 | R109: INTERRUPTOR SIMPLES (2 MÓDULOS), 10A/250V, INCLUINDO SUPORTE E PLACA - FORNECIMENTO E INSTALAÇÃO. AF_12/2015 | S109: UN | T109: 14 | U109: 1 | V109: 14 | Y109: 0 | Z109: 0 | AA109: Referência: AGETOP - 71441
A110: S | B110: 2 | C110: S | D110: 0 | E110: 1 | F110: 5 | G110: 0 | H110: 0 | I110: 0 | J110: 0 | K110: 0 | M110: Serviço | N110: Serviço | O110: - | P110: SINAPI | Q110: 91967 | R110: INTERRUPTOR SIMPLES (3 MÓDULOS), 10A/250V, INCLUINDO SUPORTE E PLACA - FORNECIMENTO E INSTALAÇÃO. AF_12/2015 | S110: UN | T110: 2 | U110: 1 | V110: 2 | Y110: 0 | Z110: 0 | AA110: Referência: AGETOP - 71442
A111: S | B111: 2 | C111: S | D111: 0 | E111: 1 | F111: 5 | G111: 0 | H111: 0 | I111: 0 | J111: 0 | K111: 0 | M111: Serviço | N111: Serviço | O111: - | P111: SINAPI | Q111: 92023 | R111: INTERRUPTOR SIMPLES (1 MÓDULO) COM 1 TOMADA DE EMBUTIR 2P+T 10 A, INCLUINDO SUPORTE E PLACA - FORNECIMENTO E INSTALAÇÃO. AF_12/2015 | S111: UN | T111: 5 | U111: 1 | V111: 5 | Y111: 0 | Z111: 0
A112: S | B112: 2 | C112: S | D112: 0 | E112: 1 | F112: 5 | G112: 0 | H112: 0 | I112: 0 | J112: 0 | K112: 0 | M112: Serviço | N112: Serviço | O112: - | P112: SINAPI | Q112: 72278 | R112: LAMPADA VAPOR METALICO 400W - FORNECIMENTO E INSTALACAO | S112: UN | T112: 8 | U112: 1 | V112: 8 | Y112: 0 | Z112: 0 | AA112: Referência: AGETOP - 71527
A113: S | B113: 2 | C113: S | D113: 0 | E113: 1 | F113: 5 | G113: 0 | H113: 0 | I113: 0 | J113: 0 | K113: 0 | M113: Serviço | N113: Serviço | O113: - | P113: SINAPI | Q113: 97611 | R113: LÂMPADA COMPACTA FLUORESCENTE DE 15 W, BASE E27 - FORNECIMENTO E INSTALAÇÃO. AF_02/2020 | S113: UN | T113: 11 | U113: 1 | V113: 11 | Y113: 0 | Z113: 0 | AA113: Referência: AGETOP - 71567
A114: S | B114: 2 | C114: S | D114: 0 | E114: 1 | F114: 5 | G114: 0 | H114: 0 | I114: 0 | J114: 0 | K114: 0 | M114: Serviço | N114: Serviço | O114: - | P114: COMPOSIÇÃO | Q114: COMP 387_SEE | R114: LÂMPADA LED TUBULAR 18W | S114: UN | T114: 204 | U114: 1 | V114: 204 | Y114: 0 | Z114: 0
A115: S | B115: 2 | C115: S | D115: 0 | E115: 1 | F115: 5 | G115: 0 | H115: 0 | I115: 0 | J115: 0 | K115: 0 | M115: Serviço | N115: Serviço | O115: - | P115: COMPOSIÇÃO | Q115: COMP 375_SEE | R115: REFLETOR DE LED HOLOFORTE 50W | S115: UN | T115: 19 | U115: 1 | V115: 19 | Y115: 0 | Z115: 0
A116: S | B116: 2 | C116: S | D116: 0 | E116: 1 | F116: 5 | G116: 0 | H116: 0 | I116: 0 | J116: 0 | K116: 0 | M116: Serviço | N116: Serviço | O116: - | P116: SINAPI | Q116: 97585 | R116: LUMINÁRIA TIPO CALHA, DE SOBREPOR, COM 2 LÂMPADAS TUBULARES FLUORESCENTES DE 18 W, COM REATOR DE PARTIDA RÁPIDA - FORNECIMENTO E INSTALAÇÃO. AF_02/2020 | S116: UN | T116: 102 | U116: 1 | V116: 102 | Y116: 0 | Z116: 0
A117: S | B117: 2 | C117: S | D117: 0 | E117: 1 | F117: 5 | G117: 0 | H117: 0 | I117: 0 | J117: 0 | K117: 0 | M117: Serviço | N117: Serviço | O117: - | P117: SINAPI | Q117: 97591 | R117: LUMINÁRIA TIPO PLAFON REDONDO COM VIDRO FOSCO, DE SOBREPOR, COM 2 LÂMPADAS FLUORESCENTES DE 15 W, SEM REATOR - FORNECIMENTO E INSTALAÇÃO. AF_02/2020 | S117: UN | T117: 11 | U117: 1 | V117: 11 | Y117: 0 | Z117: 0
A118: S | B118: 2 | C118: S | D118: 0 | E118: 1 | F118: 5 | G118: 0 | H118: 0 | I118: 0 | J118: 0 | K118: 0 | M118: Serviço | N118: Serviço | O118: - | P118: SINAPI | Q118: 74246/1 | R118: REFLETOR RETANGULAR FECHADO COM LAMPADA VAPOR METALICO 400 W | S118: UN | T118: 8 | U118: 1 | V118: 8 | Y118: 0 | Z118: 0 | AA118: Referência: AGETOP - 71684
A119: S | B119: 2 | C119: S | D119: 0 | E119: 1 | F119: 5 | G119: 0 | H119: 0 | I119: 0 | J119: 0 | K119: 0 | M119: Serviço | N119: Serviço | O119: - | P119: SINAPI | Q119: 91884 | R119: LUVA PARA ELETRODUTO, PVC, ROSCÁVEL, DN 25 MM (3/4"), PARA CIRCUITOS TERMINAIS, INSTALADA EM PAREDE - FORNECIMENTO E INSTALAÇÃO. AF_12/2015 | S119: UN | T119: 68 | U119: 1 | V119: 68 | Y119: 0 | Z119: 0 | AA119: Referência: AGETOP - 71741
A120: S | B120: 2 | C120: S | D120: 0 | E120: 1 | F120: 5 | G120: 0 | H120: 0 | I120: 0 | J120: 0 | K120: 0 | M120: Serviço | N120: Serviço | O120: - | P120: SINAPI | Q120: 91885 | R120: LUVA PARA ELETRODUTO, PVC, ROSCÁVEL, DN 32 MM (1"), PARA CIRCUITOS TERMINAIS, INSTALADA EM PAREDE - FORNECIMENTO E INSTALAÇÃO. AF_12/2015 | S120: UN | T120: 46 | U120: 1 | V120: 46 | Y120: 0 | Z120: 0 | AA120: Referência: AGETOP - 71742
A121: S | B121: 2 | C121: S | D121: 0 | E121: 1 | F121: 5 | G121: 0 | H121: 0 | I121: 0 | J121: 0 | K121: 0 | M121: Serviço | N121: Serviço | O121: - | P121: SINAPI | Q121: 93013 | R121: LUVA PARA ELETRODUTO, PVC, ROSCÁVEL, DN 50 MM (1 1/2") - FORNECIMENTO E INSTALAÇÃO. AF_12/2015 | S121: UN | T121: 9 | U121: 1 | V121: 9 | Y121: 0 | Z121: 0 | AA121: Referência: AGETOP - 71744
A122: S | B122: 2 | C122: S | D122: 0 | E122: 1 | F122: 5 | G122: 0 | H122: 0 | I122: 0 | J122: 0 | K122: 0 | M122: Serviço | N122: Serviço | O122: - | P122: SINAPI | Q122: 93014 | R122: LUVA PARA ELETRODUTO, PVC, ROSCÁVEL, DN 60 MM (2") - FORNECIMENTO E INSTALAÇÃO. AF_12/2015 | S122: UN | T122: 6 | U122: 1 | V122: 6 | Y122: 0 | Z122: 0 | AA122: Referência: AGETOP - 71745
A123: S | B123: 2 | C123: S | D123: 0 | E123: 1 | F123: 5 | G123: 0 | H123: 0 | I123: 0 | J123: 0 | K123: 0 | M123: Serviço | N123: Serviço | O123: - | P123: AGETOP | Q123: 71824 | R123: PADRÃO TRIFASICO 35 MM H=7 METROS | S123: Un | T123: 1 | U123: 1 | V123: 1 | Y123: 0 | Z123: 0
A124: S | B124: 2 | C124: S | D124: 0 | E124: 1 | F124: 5 | G124: 0 | H124: 0 | I124: 0 | J124: 0 | K124: 0 | M124: Serviço | N124: Serviço | O124: - | P124: SINAPI | Q124: 83463 | R124: QUADRO DE DISTRIBUICAO DE ENERGIA EM CHAPA DE ACO GALVANIZADO, PARA 12 DISJUNTORES TERMOMAGNETICOS MONOPOLARES, COM BARRAMENTO TRIFASICO E NEUTRO - FORNECIMENTO E INSTALACAO | S124: UN | T124: 3 | U124: 1 | V124: 3 | Y124: 0 | Z124: 0
A125: S | B125: 2 | C125: S | D125: 0 | E125: 1 | F125: 5 | G125: 0 | H125: 0 | I125: 0 | J125: 0 | K125: 0 | M125: Serviço | N125: Serviço | O125: - | P125: SINAPI | Q125: 74131/4 | R125: QUADRO DE DISTRIBUICAO DE ENERGIA DE EMBUTIR, EM CHAPA METALICA, PARA 18 DISJUNTORES TERMOMAGNETICOS MONOPOLARES, COM BARRAMENTO TRIFASICO E NEUTRO, FORNECIMENTO E INSTALACAO | S125: UN | T125: 1 | U125: 1 | V125: 1 | Y125: 0 | Z125: 0
A126: S | B126: 2 | C126: S | D126: 0 | E126: 1 | F126: 5 | G126: 0 | H126: 0 | I126: 0 | J126: 0 | K126: 0 | M126: Serviço | N126: Serviço | O126: - | P126: SINAPI | Q126: 74131/5 | R126: QUADRO DE DISTRIBUICAO DE ENERGIA DE EMBUTIR, EM CHAPA METALICA, PARA 24 DISJUNTORES TERMOMAGNETICOS MONOPOLARES, COM BARRAMENTO TRIFASICO E NEUTRO, FORNECIMENTO E INSTALACAO | S126: UN | T126: 2 | U126: 1 | V126: 2 | Y126: 0 | Z126: 0
A127: S | B127: 2 | C127: S | D127: 0 | E127: 1 | F127: 5 | G127: 0 | H127: 0 | I127: 0 | J127: 0 | K127: 0 | M127: Serviço | N127: Serviço | O127: - | P127: SINAPI | Q127: 74131/7 | R127: QUADRO DE DISTRIBUICAO DE ENERGIA DE EMBUTIR, EM CHAPA METALICA, PARA 40 DISJUNTORES TERMOMAGNETICOS MONOPOLARES, COM BARRAMENTO TRIFASICO E NEUTRO, FORNECIMENTO E INSTALACAO | S127: UN | T127: 1 | U127: 1 | V127: 1 | Y127: 0 | Z127: 0
A128: S | B128: 2 | C128: S | D128: 0 | E128: 1 | F128: 5 | G128: 0 | H128: 0 | I128: 0 | J128: 0 | K128: 0 | M128: Serviço | N128: Serviço | O128: - | P128: AGETOP | Q128: 72385 | R128: TAMPA CEGA PARA CONDULETE DE PVC | S128: Un | T128: 34 | U128: 1 | V128: 34 | Y128: 0 | Z128: 0
A129: S | B129: 2 | C129: S | D129: 0 | E129: 1 | F129: 5 | G129: 0 | H129: 0 | I129: 0 | J129: 0 | K129: 0 | M129: Serviço | N129: Serviço | O129: - | P129: AGETOP | Q129: 72441 | R129: TAMPA PARA CONDULETE DE PVC PARA 1 TOMADA | S129: un | T129: 70 | U129: 1 | V129: 70 | Y129: 0 | Z129: 0
A130: S | B130: 2 | C130: S | D130: 0 | E130: 1 | F130: 5 | G130: 0 | H130: 0 | I130: 0 | J130: 0 | K130: 0 | M130: Serviço | N130: Serviço | O130: - | P130: SINAPI | Q130: 91996 | R130: TOMADA MÉDIA DE EMBUTIR (1 MÓDULO), 2P+T 10 A, INCLUINDO SUPORTE E PLACA - FORNECIMENTO E INSTALAÇÃO. AF_12/2015 | S130: UN | T130: 6 | U130: 1 | V130: 6 | Y130: 0 | Z130: 0 | AA130: Referência: AGETOP - 72578
A131: S | B131: 2 | C131: S | D131: 0 | E131: 1 | F131: 5 | G131: 0 | H131: 0 | I131: 0 | J131: 0 | K131: 0 | M131: Serviço | N131: Serviço | O131: - | P131: SINAPI | Q131: 92000 | R131: TOMADA BAIXA DE EMBUTIR (1 MÓDULO), 2P+T 10 A, INCLUINDO SUPORTE E PLACA - FORNECIMENTO E INSTALAÇÃO. AF_12/2015 | S131: UN | T131: 7 | U131: 1 | V131: 7 | Y131: 0 | Z131: 0 | AA131: Referência: AGETOP - 72578
A132: S | B132: 2 | C132: S | D132: 0 | E132: 1 | F132: 5 | G132: 0 | H132: 0 | I132: 0 | J132: 0 | K132: 0 | M132: Serviço | N132: Serviço | O132: - | P132: SINAPI | Q132: 92004 | R132: TOMADA MÉDIA DE EMBUTIR (2 MÓDULOS), 2P+T 10 A, INCLUINDO SUPORTE E PLACA - FORNECIMENTO E INSTALAÇÃO. AF_12/2015 | S132: UN | T132: 1 | U132: 1 | V132: 1 | Y132: 0 | Z132: 0 | AA132: Referência: AGETOP - 72578
A133: S | B133: 2 | C133: S | D133: 0 | E133: 1 | F133: 5 | G133: 0 | H133: 0 | I133: 0 | J133: 0 | K133: 0 | M133: Serviço | N133: Serviço | O133: - | P133: AGETOP | Q133: 72578 | R133: TOMADA HEXAGONAL 2P + T - 10A - 250V | S133: Un | T133: 69 | U133: 1 | V133: 69 | Y133: 0 | Z133: 0
A134: S | B134: 2 | C134: S | D134: 0 | E134: 1 | F134: 5 | G134: 0 | H134: 0 | I134: 0 | J134: 0 | K134: 0 | M134: Serviço | N134: Serviço | O134: - | P134: AGETOP | Q134: 72585 | R134: TOMADA HEXAGONAL 2P + T - 20A - 250V | S134: Un | T134: 12 | U134: 1 | V134: 12 | Y134: 0 | Z134: 0
A135: =CHOOSE(1+LOG(1+2*(ORÇAMENTO.Nivel="Nível 1")+4*(ORÇAMENTO.Nivel="Nível 2")+8*(ORÇAMENTO.Nivel="Nível 3")+16*(ORÇAMENTO.Nivel="Nível 4")+32*(ORÇAMENTO.Nivel="Serviço"),2),0,1,2,3,4,"S") -> 2 | B135: =IF(OR(C135="s",C135=0),OFFSET(B135,-1,0),C135) -> 2 | C135: =IF(OFFSET(C135,-1,0)="L",1,IF(OFFSET(C135,-1,0)=1,2,IF(OR(A135="s",A135=0),"S",IF(AND(OFFSET(C135,-1,0)=2,A135=4),3,IF(AND(OR(OFFSET(C135,-1,0)="s",OFFSET(C135,-1,0)=0),A135<>"s",A135>OFFSET(B135,-1,0)),OFFSET(B135,-1,0),A135))))) -> 2 | D135: =IF(OR(C135="S",C135=0),0,IF(ISERROR(K135),J135,SMALL(J135:K135,1))) -> 56 | E135: =IF($C135=1,OFFSET(E135,-1,0)+1,OFFSET(E135,-1,0)) -> 1 | F135: =IF($C135=1,0,IF($C135=2,OFFSET(F135,-1,0)+1,OFFSET(F135,-1,0))) -> 6 | G135: =IF(AND($C135<=2,$C135<>0),0,IF($C135=3,OFFSET(G135,-1,0)+1,OFFSET(G135,-1,0))) -> 0 | H135: =IF(AND($C135<=3,$C135<>0),0,IF($C135=4,OFFSET(H135,-1,0)+1,OFFSET(H135,-1,0))) -> 0 | I135: =IF(AND($C135<=4,$C135<>0),0,IF(AND($C135="S",$Y135>0),OFFSET(I135,-1,0)+1,OFFSET(I135,-1,0))) -> 0 | J135: 119 | K135: 56 | M135: Nível 2 | N135: Nível 2 | O135: - | P135: AGETOP | R135: INSTALAÇÕES HIDROSSANITÁRIAS | S135: - | U135: 1 | V135: - | Y135: 0 | Z135: 0
A136: 3 | B136: 3 | C136: 3 | D136: 18 | E136: 1 | F136: 6 | G136: 1 | H136: 0 | I136: 0 | J136: 55 | K136: 18 | M136: Nível 3 | N136: Nível 3 | O136: - | P136: SINAPI | R136: PEÇAS E ACESSÓRIOS | S136: - | U136: 1 | V136: - | Y136: 0 | Z136: 0
A137: 4 | B137: 4 | C137: 4 | D137: 7 | E137: 1 | F137: 6 | G137: 1 | H137: 1 | I137: 0 | J137: 17 | K137: 7 | M137: Nível 4 | N137: Nível 4 | O137: - | P137: SINAPI | R137: VASO SANITÁRIO E ACESSÓRIOS | S137: - | U137: 1 | V137: - | Y137: 0 | Z137: 0
A138: S | B138: 4 | C138: S | D138: 0 | E138: 1 | F138: 6 | G138: 1 | H138: 1 | I138: 0 | J138: 0 | K138: 0 | M138: Serviço | N138: Serviço | O138: - | P138: SINAPI | Q138: 95470 | R138: VASO SANITARIO SIFONADO CONVENCIONAL COM LOUÇA BRANCA, INCLUSO CONJUNTO DE LIGAÇÃO PARA BACIA SANITÁRIA AJUSTÁVEL - FORNECIMENTO E INSTALAÇÃO. AF_10/2016 | S138: UN | T138: 1 | U138: 1 | V138: 1 | Y138: 0 | Z138: 0
A139: S | B139: 4 | C139: S | D139: 0 | E139: 1 | F139: 6 | G139: 1 | H139: 1 | I139: 0 | J139: 0 | K139: 0 | M139: Serviço | N139: Serviço | O139: - | P139: SINAPI | Q139: 99635 | R139: VÁLVULA DE DESCARGA METÁLICA, BASE 1 1/2 ", ACABAMENTO METALICO CROMADO - FORNECIMENTO E INSTALAÇÃO. AF_01/2019 | S139: UN | T139: 1 | U139: 1 | V139: 1 | Y139: 0 | Z139: 0 | AA139: Referência: AGETOP - 80515
A140: S | B140: 4 | C140: S | D140: 0 | E140: 1 | F140: 6 | G140: 1 | H140: 1 | I140: 0 | J140: 0 | K140: 0 | M140: Serviço | N140: Serviço | O140: - | P140: AGETOP | Q140: 80520 | R140: CONJUNTO DE FIXACAO P/VASO SANITARIO (PAR) | S140: CJ | T140: 1 | U140: 1 | V140: 1 | Y140: 0 | Z140: 0
A141: S | B141: 4 | C141: S | D141: 0 | E141: 1 | F141: 6 | G141: 1 | H141: 1 | I141: 0 | J141: 0 | K141: 0 | M141: Serviço | N141: Serviço | O141: - | P141: AGETOP | Q141: 80526 | R141: ASSENTO EM POLIPROPILENO COM SISTEMA DE FECHAMENTO SUAVE PARA VASO SANITÁRIO | S141: Un | T141: 1 | U141: 1 | V141: 1 | Y141: 0 | Z141: 0
A142: S | B142: 4 | C142: S | D142: 0 | E142: 1 | F142: 6 | G142: 1 | H142: 1 | I142: 0 | J142: 0 | K142: 0 | M142: Serviço | N142: Serviço | O142: - | P142: SINAPI | Q142: 95544 | R142: PAPELEIRA DE PAREDE EM METAL CROMADO SEM TAMPA, INCLUSO FIXAÇÃO. AF_01/2020 | S142: UN | T142: 1 | U142: 1 | V142: 1 | Y142: 0 | Z142: 0
A143: S | B143: 4 | C143: S | D143: 0 | E143: 1 | F143: 6 | G143: 1 | H143: 1 | I143: 0 | J143: 0 | K143: 0 | M143: Serviço | N143: Serviço | O143: - | P143: AGETOP | Q143: 80513 | R143: TUBO PARA VÁLVULA DE DESCARGA ( CURTO 1.1/4" ) | S143: Un | T143: 1 | U143: 1 | V143: 1 | Y143: 0 | Z143: 0
A144: 4 | B144: 4 | C144: 4 | D144: 7 | E144: 1 | F144: 6 | G144: 1 | H144: 2 | I144: 0 | J144: 10 | K144: 7 | M144: Nível 4 | N144: Nível 4 | O144: - | P144: SINAPI | R144: LAVATÓRIO E ACESSÓRIOS | S144: - | U144: 1 | V144: - | Y144: 0 | Z144: 0
A145: S | B145: 4 | C145: S | D145: 0 | E145: 1 | F145: 6 | G145: 1 | H145: 2 | I145: 0 | J145: 0 | K145: 0 | M145: Serviço | N145: Serviço | O145: - | P145: AGETOP | Q145: 80550 | R145: FIXACAO P/LAVATORIO (PAR) | S145: PAR | T145: 1 | U145: 1 | V145: 1 | Y145: 0 | Z145: 0
A146: S | B146: 4 | C146: S | D146: 0 | E146: 1 | F146: 6 | G146: 1 | H146: 2 | I146: 0 | J146: 0 | K146: 0 | M146: Serviço | N146: Serviço | O146: - | P146: AGETOP | Q146: 80556 | R146: LIGAÇÃO FLEXÍVEL PVC DIAM.1/2" (ENGATE) | S146: Un | T146: 1 | U146: 1 | V146: 1 | Y146: 0 | Z146: 0
A147: S | B147: 4 | C147: S | D147: 0 | E147: 1 | F147: 6 | G147: 1 | H147: 2 | I147: 0 | J147: 0 | K147: 0 | M147: Serviço | N147: Serviço | O147: - | P147: SINAPI | Q147: 86883 | R147: SIFÃO DO TIPO FLEXÍVEL EM PVC 1 X 1.1/2 - FORNECIMENTO E INSTALAÇÃO. AF_01/2020 | S147: UN | T147: 1 | U147: 1 | V147: 1 | Y147: 0 | Z147: 0
A148: S | B148: 4 | C148: S | D148: 0 | E148: 1 | F148: 6 | G148: 1 | H148: 2 | I148: 0 | J148: =IF(OR($C148="S",$C148=0),0,MATCH(0,OFFSET($D148,1,$C148,ROW($C$254)-ROW($C148)),0)) -> 0 | K148: =IF(OR($C148="S",$C148=0),0,MATCH(OFFSET($D148,0,$C148)+1,OFFSET($D148,1,$C148,ROW($C$254)-ROW($C148)),0)) -> 0 | M148: Serviço | N148: Serviço | O148: - | P148: SINAPI | Q148: 86915 | R148: TORNEIRA CROMADA DE MESA, 1/2 OU 3/4, PARA LAVATÓRIO, PADRÃO MÉDIO - FORNECIMENTO E INSTALAÇÃO. AF_01/2020 | S148: UN | T148: 1 | U148: 1 | V148: 1 | Y148: 0 | Z148: 0 | AA148: Referência: AGETOP - 80570
A149: S | B149: 4 | C149: S | D149: 0 | E149: 1 | F149: 6 | G149: 1 | H149: 2 | I149: 0 | J149: 0 | K149: 0 | M149: Serviço | N149: Serviço | O149: - | P149: SINAPI | Q149: 86877 | R149: VÁLVULA EM METAL CROMADO 1.1/2 X 1.1/2 PARA TANQUE OU LAVATÓRIO, COM OU SEM LADRÃO - FORNECIMENTO E INSTALAÇÃO. AF_01/2020 | S149: UN | T149: 1 | U149: 1 | V149: 1 | Y149: 0 | Z149: 0 | AA149: Referência: AGETOP - 80580
A150: S | B150: 4 | C150: S | D150: 0 | E150: 1 | F150: 6 | G150: 1 | H150: 2 | I150: 0 | J150: 0 | K150: 0 | M150: Serviço | N150: Serviço | O150: - | P150: SINAPI | Q150: 86901 | R150: CUBA DE EMBUTIR OVAL EM LOUÇA BRANCA, 35 X 50CM OU EQUIVALENTE - FORNECIMENTO E INSTALAÇÃO. AF_01/2020 | S150: UN | T150: 1 | U150: 1 | V150: 1 | Y150: 0 | Z150: 0 | AA150: Referência: AGETOP - 80587
A151: 4 | B151: 4 | C151: 4 | D151: 3 | E151: 1 | F151: 6 | G151: 1 | H151: 3 | I151: 0 | J151: 3 | K151: 13 | M151: Nível 4 | N151: Nível 4 | O151: - | P151: SINAPI | R151: REGISTROS | S151: - | U151: 1 | V151: - | Y151: 0 | Z151: 0
A152: S | B152: 4 | C152: S | D152: 0 | E152: 1 | F152: 6 | G152: 1 | H152: 3 | I152: 0 | J152: 0 | K152: 0 | M152: Serviço | N152: Serviço | O152: - | P152: SINAPI | Q152: 94794 | R152: REGISTRO DE GAVETA BRUTO, LATÃO, ROSCÁVEL, 1 1/2, COM ACABAMENTO E CANOPLA CROMADOS, INSTALADO EM RESERVAÇÃO DE ÁGUA DE EDIFICAÇÃO QUE POSSUA RESERVATÓRIO DE FIBRA/FIBROCIMENTO  FORNECIMENTO E INSTALAÇÃO. AF_06/2016 | S152: UN | T152: 1 | U152: 1 | V152: 1 | Y152: 0 | Z152: 0 | AA152: Referência: AGETOP - 80929
A153: S | B153: 4 | C153: S | D153: 0 | E153: 1 | F153: 6 | G153: 1 | H153: 3 | I153: 0 | J153: 0 | K153: 0 | M153: Serviço | N153: Serviço | O153: - | P153: SINAPI | Q153: 94497 | R153: REGISTRO DE GAVETA BRUTO, LATÃO, ROSCÁVEL, 1 1/2, INSTALADO EM RESERVAÇÃO DE ÁGUA DE EDIFICAÇÃO QUE POSSUA RESERVATÓRIO DE FIBRA/FIBROCIMENTO  FORNECIMENTO E INSTALAÇÃO. AF_06/2016 | S153: UN | T153: 1 | U153: 1 | V153: 1 | Y153: 0 | Z153: 0 | AA153: Referência: AGETOP - 80905
A154: 3 | B154: 3 | C154: 3 | D154: 18 | E154: 1 | F154: 6 | G154: 2 | H154: 0 | I154: 0 | J154: 37 | K154: 18 | M154: Nível 3 | N154: Nível 3 | O154: - | P154: SINAPI | R154: ÁGUA FRIA | S154: - | U154: 1 | V154: - | Y154: 0 | Z154: 0
A155: 4 | B155: 4 | C155: 4 | D155: 3 | E155: 1 | F155: 6 | G155: 2 | H155: 1 | I155: 0 | J155: 17 | K155: 3 | M155: Nível 4 | N155: Nível 4 | O155: - | P155: SINAPI | R155: TUBOS DE PVC SOLDÁVEL | S155: - | U155: 1 | V155: - | Y155: 0 | Z155: 0
A156: S | B156: 4 | C156: S | D156: 0 | E156: 1 | F156: 6 | G156: 2 | H156: 1 | I156: 0 | J156: 0 | K156: 0 | M156: Serviço | N156: Serviço | O156: - | P156: SINAPI | Q156: 89402 | R156: TUBO, PVC, SOLDÁVEL, DN 25MM, INSTALADO EM RAMAL DE DISTRIBUIÇÃO DE ÁGUA - FORNECIMENTO E INSTALAÇÃO. AF_12/2014 | S156: M | T156: 6 | U156: 1 | V156: 6 | Y156: 0 | Z156: 0 | AA156: Referência: AGETOP - 81003
A157: S | B157: 4 | C157: S | D157: 0 | E157: 1 | F157: 6 | G157: 2 | H157: 1 | I157: 0 | J157: 0 | K157: 0 | M157: Serviço | N157: Serviço | O157: - | P157: SINAPI | Q157: 89449 | R157: TUBO, PVC, SOLDÁVEL, DN 50MM, INSTALADO EM PRUMADA DE ÁGUA - FORNECIMENTO E INSTALAÇÃO. AF_12/2014 | S157: M | T157: 42 | U157: 1 | V157: 42 | Y157: 0 | Z157: 0
A158: 4 | B158: 4 | C158: 4 | D158: 3 | E158: 1 | F158: 6 | G158: 2 | H158: 2 | I158: 0 | J158: 14 | K158: 3 | M158: Nível 4 | N158: Nível 4 | O158: - | P158: SINAPI | R158: ADAPTADORES DE PVC SOLDÁVEL | S158: - | U158: 1 | V158: - | Y158: 0 | Z158: 0
A159: S | B159: 4 | C159: S | D159: 0 | E159: 1 | F159: 6 | G159: 2 | H159: 2 | I159: 0 | J159: 0 | K159: 0 | M159: Serviço | N159: Serviço | O159: - | P159: SINAPI | Q159: 89596 | R159: ADAPTADOR CURTO COM BOLSA E ROSCA PARA REGISTRO, PVC, SOLDÁVEL, DN 50MM X 1.1/2, INSTALADO EM PRUMADA DE ÁGUA - FORNECIMENTO E INSTALAÇÃO. AF_12/2014 | S159: UN | T159: 5 | U159: 1 | V159: 5 | Y159: 0 | Z159: 0 | AA159: Referência: AGETOP - 81069
A160: S | B160: 4 | C160: S | D160: 0 | E160: 1 | F160: 6 | G160: 2 | H160: 2 | I160: 0 | J160: 0 | K160: 0 | M160: Serviço | N160: Serviço | O160: - | P160: SINAPI | Q160: 94787 | R160: ADAPTADOR COM FLANGES LIVRES, PVC, SOLDÁVEL LONGO, DN 50 MM X 1 1/2 , INSTALADO EM RESERVAÇÃO DE ÁGUA DE EDIFICAÇÃO QUE POSSUA RESERVATÓRIO DE FIBRA/FIBROCIMENTO FORNECIMENTO E INSTALAÇÃO. AF_06/2016 | S160: UN | T160: 1 | U160: 1 | V160: 1 | Y160: 0 | Z160: 0
A161: 4 | B161: 4 | C161: 4 | D161: 3 | E161: 1 | F161: 6 | G161: 2 | H161: 3 | I161: 0 | J161: 11 | K161: 3 | M161: Nível 4 | N161: Nível 4 | O161: - | P161: SINAPI | R161: LUVAS DE PVC | S161: - | U161: 1 | V161: - | Y161: 0 | Z161: 0
A162: S | B162: 4 | C162: S | D162: 0 | E162: 1 | F162: 6 | G162: 2 | H162: 3 | I162: 0 | J162: 0 | K162: 0 | M162: Serviço | N162: Serviço | O162: - | P162: SINAPI | Q162: 89528 | R162: LUVA, PVC, SOLDÁVEL, DN 25MM, INSTALADO EM PRUMADA DE ÁGUA - FORNECIMENTO E INSTALAÇÃO. AF_12/2014 | S162: UN | T162: 2 | U162: 1 | V162: 2 | Y162: 0 | Z162: 0
A163: S | B163: 4 | C163: S | D163: 0 | E163: 1 | F163: 6 | G163: 2 | H163: 3 | I163: 0 | J163: 0 | K163: 0 | M163: Serviço | N163: Serviço | O163: - | P163: SINAPI | Q163: 89575 | R163: LUVA, PVC, SOLDÁVEL, DN 50MM, INSTALADO EM PRUMADA DE ÁGUA - FORNECIMENTO E INSTALAÇÃO. AF_12/2014 | S163: UN | T163: 5 | U163: 1 | V163: 5 | Y163: 0 | Z163: 0 | AA163: Referência: AGETOP - 81105
A164: 4 | B164: 4 | C164: 4 | D164: 2 | E164: 1 | F164: 6 | G164: 2 | H164: 4 | I164: 0 | J164: 8 | K164: 2 | M164: Nível 4 | N164: Nível 4 | O164: - | P164: SINAPI | R164: BUCHAS | S164: - | U164: 1 | V164: - | Y164: 0 | Z164: 0
A165: S | B165: 4 | C165: S | D165: 0 | E165: 1 | F165: 6 | G165: 2 | H165: 4 | I165: 0 | J165: 0 | K165: 0 | M165: Serviço | N165: Serviço | O165: - | P165: AGETOP | Q165: 81179 | R165: BUCHA DE REDUCAO SOLDAVEL LONGA 50 X 25 mm | S165: Un | T165: 1 | U165: 1 | V165: 1 | Y165: 0 | Z165: 0
A166: 4 | B166: 4 | C166: 4 | D166: 4 | E166: 1 | F166: 6 | G166: 2 | H166: 5 | I166: 0 | J166: 6 | K166: 4 | M166: Nível 4 | N166: Nível 4 | O166: - | P166: SINAPI | R166: JOELHO | S166: - | U166: 1 | V166: - | Y166: 0 | Z166: 0
A167: S | B167: 4 | C167: S | D167: 0 | E167: 1 | F167: 6 | G167: 2 | H167: 5 | I167: 0 | J167: 0 | K167: 0 | M167: Serviço | N167: Serviço | O167: - | P167: SINAPI | Q167: 89481 | R167: JOELHO 90 GRAUS, PVC, SOLDÁVEL, DN 25MM, INSTALADO EM PRUMADA DE ÁGUA - FORNECIMENTO E INSTALAÇÃO. AF_12/2014 | S167: UN | T167: 3 | U167: 1 | V167: 3 | Y167: 0 | Z167: 0
A168: S | B168: 4 | C168: S | D168: 0 | E168: 1 | F168: 6 | G168: 2 | H168: 5 | I168: 0 | J168: 0 | K168: 0 | M168: Serviço | N168: Serviço | O168: - | P168: SINAPI | Q168: 89501 | R168: JOELHO 90 GRAUS, PVC, SOLDÁVEL, DN 50MM, INSTALADO EM PRUMADA DE ÁGUA - FORNECIMENTO E INSTALAÇÃO. AF_12/2014 | S168: UN | T168: 9 | U168: 1 | V168: 9 | Y168: 0 | Z168: 0
A169: S | B169: 4 | C169: S | D169: 0 | E169: 1 | F169: 6 | G169: 2 | H169: 5 | I169: 0 | J169: 0 | K169: 0 | M169: Serviço | N169: Serviço | O169: - | P169: AGETOP | Q169: 81380 | R169: JOELHO 90 GRAUS C/ROSCA E BUCHA LATAO DIAM.1/2" | S169: Un | T169: 1 | U169: 1 | V169: 1 | Y169: 0 | Z169: 0
A170: 4 | B170: 4 | C170: 4 | D170: 2 | E170: 1 | F170: 6 | G170: 2 | H170: 6 | I170: 0 | J170: 2 | M170: Nível 4 | N170: Nível 4 | O170: - | P170: SINAPI | R170: TÊ | S170: - | U170: 1 | V170: - | Y170: 0 | Z170: 0
A171: S | B171: 4 | C171: S | D171: 0 | E171: 1 | F171: 6 | G171: 2 | H171: 6 | I171: 0 | J171: 0 | K171: 0 | M171: Serviço | N171: Serviço | O171: - | P171: SINAPI | Q171: 89625 | R171: TE, PVC, SOLDÁVEL, DN 50MM, INSTALADO EM PRUMADA DE ÁGUA - FORNECIMENTO E INSTALAÇÃO. AF_12/2014 | S171: UN | T171: 1 | U171: 1 | V171: 1 | Y171: 0 | Z171: 0
A172: 3 | B172: 3 | C172: 3 | D172: 6 | E172: 1 | F172: 6 | G172: 3 | H172: 0 | I172: 0 | J172: 19 | K172: 6 | M172: Nível 3 | N172: Nível 3 | O172: - | P172: SINAPI | R172: ESGOTO | S172: - | U172: 1 | V172: - | Y172: 0 | Z172: 0
A173: 4 | B173: 4 | C173: 4 | D173: 2 | E173: 1 | F173: 6 | G173: 3 | H173: 1 | I173: 0 | J173: 5 | K173: 2 | M173: Nível 4 | N173: Nível 4 | O173: - | P173: SINAPI | R173: TUBOS | S173: - | U173: 1 | V173: - | Y173: 0 | Z173: 0
A174: S | B174: 4 | C174: S | D174: 0 | E174: 1 | F174: 6 | G174: 3 | H174: 1 | I174: 0 | J174: 0 | K174: 0 | M174: Serviço | N174: Serviço | O174: - | P174: SINAPI | Q174: 89800 | R174: TUBO PVC, SERIE NORMAL, ESGOTO PREDIAL, DN 100 MM, FORNECIDO E INSTALADO EM PRUMADA DE ESGOTO SANITÁRIO OU VENTILAÇÃO. AF_12/2014 | S174: M | T174: 12 | U174: 1 | V174: 12 | Y174: 0 | Z174: 0
A175: 4 | B175: 4 | C175: 4 | D175: 3 | E175: 1 | F175: 6 | G175: 3 | H175: 2 | I175: 0 | J175: 3 | M175: Nível 4 | N175: Nível 4 | O175: - | P175: SINAPI | R175: ADESIVOS | S175: - | U175: 1 | V175: - | Y175: 0 | Z175: 0
A176: S | B176: 4 | C176: S | D176: 0 | E176: 1 | F176: 6 | G176: 3 | H176: 2 | I176: 0 | J176: 0 | K176: 0 | M176: Serviço | N176: Serviço | O176: - | P176: AGETOP | Q176: 81501 | R176: ADESIVO PLASTICO - FRASCO 850 G | S176: Un | T176: 2 | U176: 1 | V176: 2 | Y176: 0 | Z176: 0
A177: S | B177: 4 | C177: S | D177: 0 | E177: 1 | F177: 6 | G177: 3 | H177: 2 | I177: 0 | J177: 0 | K177: 0 | M177: Serviço | N177: Serviço | O177: - | P177: AGETOP | Q177: 81504 | R177: SOLUCAO LIMPADORA 1000 CM3 | S177: Un | T177: 2 | U177: 1 | V177: 2 | Y177: 0 | Z177: 0
A178: 3 | B178: 3 | C178: 3 | D178: 3 | E178: 1 | F178: 6 | G178: 4 | H178: 0 | I178: 0 | J178: 13 | K178: 3 | M178: Nível 3 | N178: Nível 3 | O178: - | P178: SINAPI | R178: OUTROS | S178: - | U178: 1 | V178: - | Y178: 0 | Z178: 0
A179: S | B179: 3 | C179: S | D179: 0 | E179: 1 | F179: 6 | G179: 4 | H179: 0 | I179: 0 | J179: 0 | K179: 0 | M179: Serviço | N179: Serviço | O179: - | P179: AGETOP | Q179: 80845 | R179: CAIXA DE ALVENARIA 20x20x25 CM (REVESTIMENTO IMPERMEABILIZADO), FUNDO DE BRITA SEM TAMPA - PARA REGISTRO/TORNEIRA JARDIM | S179: Un | T179: 1 | U179: 1 | V179: 1 | Y179: 0 | Z179: 0
A180: S | B180: 3 | C180: S | D180: 0 | E180: 1 | F180: 6 | G180: 4 | H180: 0 | I180: 0 | J180: 0 | K180: 0 | M180: Serviço | N180: Serviço | O180: - | P180: AGETOP | Q180: 80840 | R180: TAMPA T-5 ARTICULADA 20X20 | S180: Un | T180: 1 | U180: 1 | V180: 1 | Y180: 0 | Z180: 0
A181: 3 | B181: 3 | C181: 3 | D181: 10 | E181: 1 | F181: 6 | G181: 5 | H181: 0 | I181: 0 | J181: 10 | M181: Nível 3 | N181: Nível 3 | O181: - | P181: SINAPI | R181: COMBATE A INCÊNDIO | S181: - | U181: 1 | V181: - | Y181: 0 | Z181: 0
A182: S | B182: 3 | C182: S | D182: 0 | E182: 1 | F182: 6 | G182: 5 | H182: 0 | I182: 0 | J182: 0 | K182: 0 | M182: Serviço | N182: Serviço | O182: - | P182: AGETOP | Q182: 85003 | R182: EXTINTOR PO QUIMICO SECO (6 KG) - CAPACIDADE EXTINTORA 20 BC | S182: Un | T182: 1 | U182: 1 | V182: 1 | Y182: 0 | Z182: 0
A183: S | B183: 3 | C183: S | D183: 0 | E183: 1 | F183: 6 | G183: 5 | H183: 0 | I183: 0 | J183: 0 | K183: 0 | M183: Serviço | N183: Serviço | O183: - | P183: AGETOP | Q183: 85006 | R183: EXTINTOR MULTI USO EM PO A B C (6 KG) - CAPACIDADE EXTINTORA 3A 20BC | S183: un | T183: 4 | U183: 1 | V183: 4 | Y183: 0 | Z183: 0
A184: S | B184: 3 | C184: S | D184: 0 | E184: 1 | F184: 6 | G184: 5 | H184: 0 | I184: 0 | J184: 0 | K184: 0 | M184: Serviço | N184: Serviço | O184: - | P184: COMPOSIÇÃO | Q184: COMP 024_SEE | R184: SINALIZADOR FOTOLUMINESCENTE PARA EXTINTOR | S184: UN | T184: 5 | U184: 1 | V184: 5 | Y184: 0 | Z184: 0
A185: S | B185: 3 | C185: S | D185: 0 | E185: 1 | F185: 6 | G185: 5 | H185: 0 | I185: 0 | J185: 0 | K185: 0 | M185: Serviço | N185: Serviço | O185: - | P185: COMPOSIÇÃO | Q185: COMP 277_SEE | R185: MARCAÇÃO NO PISO - 1X1 M PARA EXTINTOR | S185: M2 | T185: 5 | U185: 1 | V185: 5 | Y185: 0 | Z185: 0
A186: S | B186: 3 | C186: S | D186: 0 | E186: 1 | F186: 6 | G186: 5 | H186: 0 | I186: 0 | J186: 0 | K186: 0 | M186: Serviço | N186: Serviço | O186: - | P186: COMPOSIÇÃO | Q186: COMP 235_SEE | R186: PLACA DE SINALIZAÇÃO EM PVC COD 01 - (300X300) PROIBIDO FUMAR | S186: UN | T186: 1 | U186: 1 | V186: 1 | Y186: 0 | Z186: 0
A187: S | B187: 3 | C187: S | D187: 0 | E187: 1 | F187: 6 | G187: 5 | H187: 0 | I187: 0 | J187: 0 | K187: 0 | M187: Serviço | N187: Serviço | O187: - | P187: COMPOSIÇÃO | Q187: COMP 236_SEE | R187: PLACA DE SINALIZAÇÃO EM PVC COD 06 - (300X300) PERIGO INFLAMÁVEL | S187: UN | T187: 1 | U187: 1 | V187: 1 | Y187: 0 | Z187: 0
A188: S | B188: 3 | C188: S | D188: 0 | E188: 1 | F188: 6 | G188: 5 | H188: 0 | I188: 0 | J188: 0 | K188: 0 | M188: Serviço | N188: Serviço | O188: - | P188: COMPOSIÇÃO | Q188: COMP 411_SEE | R188: PLACA DE SINALIZAÇÃO EM PVC COD 13 - (316X158) SAÍDA DE EMERGÊNCIA | S188: UN | T188: 13 | U188: 1 | V188: 13 | Y188: 0 | Z188: 0
A189: S | B189: 3 | C189: S | D189: 0 | E189: 1 | F189: 6 | G189: 5 | H189: 0 | I189: 0 | J189: 0 | K189: 0 | M189: Serviço | N189: Serviço | O189: - | P189: COMPOSIÇÃO | Q189: COMP 412_SEE | R189: PLACA DE SINALIZAÇÃO EM PVC COD 17 - (316X158) MENSAGEM "SAÍDA" | S189: UN | T189: 2 | U189: 1 | V189: 2 | Y189: 0 | Z189: 0
A190: S | B190: 3 | C190: S | D190: 0 | E190: 1 | F190: 6 | G190: 5 | H190: 0 | I190: 0 | J190: 0 | K190: 0 | M190: Serviço | N190: Serviço | O190: - | P190: SINAPI | Q190: 97599 | R190: LUMINÁRIA DE EMERGÊNCIA, COM 30 LÂMPADAS LED DE 2 W, SEM REATOR - FORNECIMENTO E INSTALAÇÃO. AF_02/2020 | S190: UN | T190: 8 | U190: 1 | V190: 8 | Y190: 0 | Z190: 0
A191: 2 | B191: 2 | C191: 2 | D191: 2 | E191: 1 | F191: 7 | G191: 0 | H191: 0 | I191: 0 | J191: 63 | K191: 2 | M191: Nível 2 | N191: Nível 2 | O191: - | R191: ESTRUTURAS METÁLICAS | S191: - | U191: 1 | V191: - | Y191: 0 | Z191: 0
A192: S | B192: 2 | C192: S | D192: 0 | E192: 1 | F192: 7 | G192: 0 | H192: 0 | I192: 0 | J192: 0 | K192: 0 | M192: Serviço | N192: Serviço | O192: - | P192: AGETOP | Q192: 150204 | R192: ESTRUTURA METÁLICA CONVENCIONAL EM AÇO DO TIPO MR-250 / ASTM A36 COM FUNDO ANTICORROSIVO | S192: Kg | T192: 856 | U192: 1 | V192: 856 | Y192: 0 | Z192: 0
A193: 2 | B193: 2 | C193: 2 | D193: 2 | E193: 1 | F193: 8 | G193: 0 | H193: 0 | I193: 0 | J193: 61 | K193: 2 | M193: Nível 2 | N193: Nível 2 | O193: - | R193: COBERTURAS | S193: - | U193: 1 | V193: - | Y193: 0 | Z193: 0
A194: S | B194: =IF(OR(C194="s",C194=0),OFFSET(B194,-1,0),C194) -> 2 | C194: =IF(OFFSET(C194,-1,0)="L",1,IF(OFFSET(C194,-1,0)=1,2,IF(OR(A194="s",A194=0),"S",IF(AND(OFFSET(C194,-1,0)=2,A194=4),3,IF(AND(OR(OFFSET(C194,-1,0)="s",OFFSET(C194,-1,0)=0),A194<>"s",A194>OFFSET(B194,-1,0)),OFFSET(B194,-1,0),A194))))) -> S | D194: =IF(OR(C194="S",C194=0),0,IF(ISERROR(K194),J194,SMALL(J194:K194,1))) -> 0 | E194: =IF($C194=1,OFFSET(E194,-1,0)+1,OFFSET(E194,-1,0)) -> 1 | F194: =IF($C194=1,0,IF($C194=2,OFFSET(F194,-1,0)+1,OFFSET(F194,-1,0))) -> 8 | G194: =IF(AND($C194<=2,$C194<>0),0,IF($C194=3,OFFSET(G194,-1,0)+1,OFFSET(G194,-1,0))) -> 0 | H194: =IF(AND($C194<=3,$C194<>0),0,IF($C194=4,OFFSET(H194,-1,0)+1,OFFSET(H194,-1,0))) -> 0 | I194: =IF(AND($C194<=4,$C194<>0),0,IF(AND($C194="S",$Y194>0),OFFSET(I194,-1,0)+1,OFFSET(I194,-1,0))) -> 0 | J194: 0 | K194: 0 | M194: Serviço | N194: Serviço | O194: - | P194: SINAPI | Q194: 94213 | R194: TELHAMENTO COM TELHA DE AÇO/ALUMÍNIO E = 0,5 MM, COM ATÉ 2 ÁGUAS, INCLUSO IÇAMENTO. AF_07/2019 | S194: M2 | T194: 35 | U194: 1 | V194: 35 | Y194: 0 | Z194: 0 | AA194: Referência: AGETOP - 160905
A195: 2 | B195: 2 | C195: 2 | D195: 11 | E195: 1 | F195: 9 | G195: 0 | H195: 0 | I195: 0 | J195: 59 | K195: 11 | M195: Nível 2 | N195: Nível 2 | O195: - | R195: ESQUADRIAS METÁLICAS | S195: - | U195: 1 | V195: - | Y195: 0 | Z195: 0
A196: =CHOOSE(1+LOG(1+2*(ORÇAMENTO.Nivel="Nível 1")+4*(ORÇAMENTO.Nivel="Nível 2")+8*(ORÇAMENTO.Nivel="Nível 3")+16*(ORÇAMENTO.Nivel="Nível 4")+32*(ORÇAMENTO.Nivel="Serviço"),2),0,1,2,3,4,"S") -> 3 | B196: 3 | C196: 3 | D196: 5 | E196: 1 | F196: 9 | G196: 1 | H196: 0 | I196: 0 | J196: 10 | K196: 5 | M196: Nível 3 | N196: Nível 3 | O196: - | P196: SINAPI | R196: CASA ZELADOR / NOVA SECRETARIA | S196: - | U196: 1 | V196: - | Y196: 0 | Z196: 0
A197: S | B197: 3 | C197: S | D197: 0 | E197: 1 | F197: 9 | G197: 1 | H197: 0 | I197: 0 | J197: 0 | K197: 0 | M197: Serviço | N197: Serviço | O197: - | P197: AGETOP | Q197: 180501 | R197: PORTA DE ABRIR EM CHAPA PF-1 C/FERRAGENS | S197: m2 | T197: 4.83 | U197: 1 | V197: 4.83 | Y197: 0 | Z197: 0
A198: S | B198: 3 | C198: S | D198: 0 | E198: 1 | F198: 9 | G198: 1 | H198: 0 | I198: 0 | J198: 0 | K198: 0 | M198: Serviço | N198: Serviço | O198: - | P198: AGETOP | Q198: 180402 | R198: ESQ.VENEZIANA CHAPA/VIDRO J11 e J16 C/FERRAGENS | S198: m2 | T198: 4 | U198: 1 | V198: 4 | Y198: 0 | Z198: 0
A199: S | B199: 3 | C199: S | D199: 0 | E199: 1 | F199: 9 | G199: 1 | H199: 0 | I199: 0 | J199: 0 | K199: 0 | M199: Serviço | N199: Serviço | O199: - | P199: AGETOP | Q199: 180380 | R199: ESQ. MAXIMO AR CHAPA/VIDRO J4 C/FERRAGENS | S199: m2 | T199: 0.6 | U199: 1 | V199: 0.6 | Y199: 0 | Z199: 0
A200: S | B200: 3 | C200: S | D200: 0 | E200: 1 | F200: 9 | G200: 1 | H200: 0 | I200: 0 | J200: 0 | K200: 0 | M200: Serviço | N200: Serviço | O200: - | P200: COMPOSIÇÃO | Q200: COMP 007_SEE | R200: GUICHÊ CANTONEIRA/GRADE PARA VIDRO | S200: M² | T200: 4 | U200: 1 | V200: 4 | Y200: 0 | Z200: 0
A201: 3 | B201: 3 | C201: 3 | D201: 3 | E201: 1 | F201: 9 | G201: 2 | H201: 0 | I201: 0 | J201: 5 | K201: 3 | M201: Nível 3 | N201: Nível 3 | O201: - | P201: SINAPI | R201: ACESSO NOVA SECRETARIA | S201: - | U201: 1 | V201: - | Y201: 0 | Z201: 0
A202: S | B202: 3 | C202: S | D202: 0 | E202: 1 | F202: 9 | G202: 2 | H202: 0 | I202: 0 | J202: 0 | K202: 0 | M202: Serviço | N202: Serviço | O202: - | P202: AGETOP | Q202: 180304 | R202: PORTAO DE ABRIR CHAPA 14 PT-4 C/FERRAGENS | S202: m2 | T202: 2.7 | U202: 1 | V202: 2.7 | Y202: 0 | Z202: 0
A203: S | B203: 3 | C203: S | D203: 0 | E203: 1 | F203: 9 | G203: 2 | H203: 0 | I203: 0 | J203: 0 | K203: 0 | M203: Serviço | N203: Serviço | O203: - | P203: AGETOP | Q203: 180323 | R203: GRELHA PADRÃO GOINFRA DE FERRO CHATO COM BERÇO (ESPAÇAMENTO ENTRE FACES = 1,5CM - NBR 9050 ACESSIBILIDADE) | S203: m2 | T203: 4.48 | U203: 1 | V203: 4.48 | Y203: 0 | Z203: 0
A204: 3 | B204: 3 | C204: 3 | D204: 2 | E204: 1 | F204: 9 | G204: 3 | H204: 0 | I204: 0 | J204: 2 | K204: 20 | M204: Nível 3 | N204: Nível 3 | O204: - | P204: SINAPI | R204: ACESSO COLÉGIO / QUADRA | S204: - | U204: 1 | V204: - | Y204: 0 | Z204: 0
A205: S | B205: 3 | C205: S | D205: 0 | E205: 1 | F205: 9 | G205: 3 | H205: 0 | I205: 0 | J205: 0 | K205: 0 | M205: Serviço | N205: Serviço | O205: - | P205: AGETOP | Q205: 180304 | R205: PORTAO DE ABRIR CHAPA 14 PT-4 C/FERRAGENS | S205: m2 | T205: 5.62 | U205: 1 | V205: 5.62 | Y205: 0 | Z205: 0
A206: 2 | B206: 2 | C206: 2 | D206: 2 | E206: 1 | F206: 10 | G206: 0 | H206: 0 | I206: 0 | J206: 48 | K206: 2 | M206: Nível 2 | N206: Nível 2 | O206: - | R206: VIDROS | S206: - | U206: 1 | V206: - | Y206: 0 | Z206: 0
A207: S | B207: 2 | C207: S | D207: 0 | E207: 1 | F207: 10 | G207: 0 | H207: 0 | I207: 0 | J207: 0 | K207: 0 | M207: Serviço | N207: Serviço | O207: - | P207: SINAPI | Q207: 72117 | R207: VIDRO LISO COMUM TRANSPARENTE, ESPESSURA 4MM | S207: M2 | T207: 4.6 | U207: 1 | V207: 4.6 | Y207: 0 | Z207: 0 | AA207: Referência: AGETOP - 190102
... 120 more rows

Sheet Resumo
B3: UNIDADE ESCOLAR | G3: CÓDIGO INEP
B4: =Orçamento!$O$5 -> CENTRO DE ENSINO EM PERÍODO INTEGRAL JOSÉ EDUARDO DO COUTO | G4: =Orçamento!X5 -> 52024148
B6: OBRA | G6: CIDADE
B7: =Orçamento!$O$8 -> REFORMA | G7: =Orçamento!$X$8 -> ITAGUARI
B9: ENDEREÇO | G9: CRE
B10: =Orçamento!$R$11 -> RUA JOSE FERNANDES CARVALHARES 197 Nº 197 , CENTRO , CEP: 7665-000 | G10: =Orçamento!$O$11 -> CRE-ITABERAI
B12: REFERÊNCIA | D12: DATA | G12: ÁREA TOTAL CONSTRUÍDA (M²)
B13: =CONCATENATE("AGETOP E SINAPI - ",Orçamento!$T$11) -> AGETOP E SINAPI - DESONERADA | D13: =Orçamento!$S$8 -> 2020-05-26 | G13: =Orçamento!$X$14 -> 970.52
A14: FILTRO
B15: RESUMO GERAL DO ORÇAMENTO
A16: ↓ | B16: ITEM | C16: DESCRIÇÃO DOS SERVIÇOS | G16: PREÇO SEM BDI | H16: PREÇO COM BDI | I16: PARTICIP. (%)
A17: =IF(G17>0,"F","") ->  | B17: 1. | C17: =Orçamento!$P307 -> REFORMA | G17: =IFERROR(Orçamento!S307,"-") -> 0 | H17: =IFERROR(Orçamento!X307,"") -> 0 | I17: =Orçamento!AA307 -> 100
A18: =IF(G18>0,"F","") ->  | B18: 2. | C18: =Orçamento!$P308 ->  | G18: =IFERROR(Orçamento!S308,"-") -> 0 | H18: =IFERROR(Orçamento!X308,"") -> 0 | I18: =Orçamento!AA308 -> 0
B19: 3. | C19: =Orçamento!$P309 ->  | G19: =IFERROR(Orçamento!S309,"-") -> 0 | H19: =IFERROR(Orçamento!X309,"") -> 0 | I19: =Orçamento!AA309 -> 0
B20: 4. | C20: =Orçamento!$P310 ->  | G20: =IFERROR(Orçamento!S310,"-") -> 0 | H20: =IFERROR(Orçamento!X310,"") -> 0 | I20: =Orçamento!AA310 -> 0
B21: 5. | C21: =Orçamento!$P311 ->  | G21: =IFERROR(Orçamento!S311,"-") -> 0 | H21: =IFERROR(Orçamento!X311,"") -> 0 | I21: =Orçamento!AA311 -> 0
B22: 6. | C22: =Orçamento!$P312 ->  | G22: =IFERROR(Orçamento!S312,"-") -> 0 | H22: =IFERROR(Orçamento!X312,"") -> 0 | I22: =Orçamento!AA312 -> 0
B23: 7. | C23: =Orçamento!$P313 ->  | G23: =IFERROR(Orçamento!S313,"-") -> 0 | H23: =IFERROR(Orçamento!X313,"") -> 0 | I23: =Orçamento!AA313 -> 0
B24: 8. | C24: =Orçamento!$P314 ->  | G24: =IFERROR(Orçamento!S314,"-") -> 0 | H24: =IFERROR(Orçamento!X314,"") -> 0 | I24: =Orçamento!AA314 -> 0
B25: 9. | C25: =Orçamento!$P315 ->  | G25: =IFERROR(Orçamento!S315,"-") -> 0 | H25: =IFERROR(Orçamento!X315,"") -> 0 | I25: =Orçamento!AA315 -> 0
B26: 10. | C26: =Orçamento!$P316 ->  | G26: =IFERROR(Orçamento!S316,"-") -> 0 | H26: =IFERROR(Orçamento!X316,"") -> 0 | I26: =Orçamento!AA316 -> 0
B27: 11. | C27: =Orçamento!$P317 ->  | G27: =IFERROR(Orçamento!S317,"-") -> 0 | H27: =IFERROR(Orçamento!X317,"") -> 0 | I27: =Orçamento!AA317 -> 0
B28: 12. | C28: =Orçamento!$P318 ->  | G28: =IFERROR(Orçamento!S318,"-") -> 0 | H28: =IFERROR(Orçamento!X318,"") -> 0 | I28: =Orçamento!AA318 -> 0
B29: 13. | C29: =Orçamento!$P319 ->  | G29: =IFERROR(Orçamento!S319,"-") -> 0 | H29: =IFERROR(Orçamento!X319,"") -> 0 | I29: =Orçamento!AA319 -> 0
B30: 14. | C30: =Orçamento!$P320 ->  | G30: =IFERROR(Orçamento!S320,"-") -> 0 | H30: =IFERROR(Orçamento!X320,"") -> 0 | I30: =Orçamento!AA320 -> 0
B31: 15. | C31: =Orçamento!$P321 ->  | G31: =IFERROR(Orçamento!S321,"-") -> 0 | H31: =IFERROR(Orçamento!X321,"") -> 0 | I31: =Orçamento!AA321 -> 0
B32: 16. | C32: =Orçamento!$P322 ->  | G32: =IFERROR(Orçamento!S322,"-") -> 0 | H32: =IFERROR(Orçamento!X322,"") -> 0 | I32: =Orçamento!AA322 -> 0
B33: 17. | C33: =Orçamento!$P323 ->  | G33: =IFERROR(Orçamento!S323,"-") -> 0 | H33: =IFERROR(Orçamento!X323,"") -> 0 | I33: =Orçamento!AA323 -> 0
B34: 18. | C34: =Orçamento!$P324 ->  | G34: =IFERROR(Orçamento!S324,"-") -> 0 | H34: =IFERROR(Orçamento!X324,"") -> 0 | I34: =Orçamento!AA324 -> 0
B35: 19. | C35: =Orçamento!$P325 ->  | G35: =IFERROR(Orçamento!S325,"-") -> 0 | H35: =IFERROR(Orçamento!X325,"") -> 0 | I35: =Orçamento!AA325 -> 0
B36: 20. | C36: =Orçamento!$P326 ->  | G36: =IFERROR(Orçamento!S326,"-") -> 0 | H36: =IFERROR(Orçamento!X326,"") -> 0 | I36: =Orçamento!AA326 -> 0
A37: F | B37: TOTAL GERAL DO ORÇAMENTO (R$) | G37: =SUM(G17:G36) -> 0 | H37: 0 | I37: =SUM(I17:I36) -> 100
A38: F
A39: F

Sheet Somatório
B3: UNIDADE ESCOLAR | E3: CÓDIGO INEP
B4: =Orçamento!$O$5 -> CENTRO DE ENSINO EM PERÍODO INTEGRAL JOSÉ EDUARDO DO COUTO | E4: =Orçamento!X5 -> 52024148
B6: OBRA | E6: CIDADE
B7: =Orçamento!$O$8 -> REFORMA | E7: =Orçamento!$X$8 -> ITAGUARI
B9: ENDEREÇO | E9: CRE
B10: =Orçamento!$R$11 -> RUA JOSE FERNANDES CARVALHARES 197 Nº 197 , CENTRO , CEP: 7665-000 | E10: =Orçamento!$O$11 -> CRE-ITABERAI
B12: REFERÊNCIA | D12: DATA | E12: ÁREA TOTAL CONSTRUÍDA (M²)
B13: =CONCATENATE("AGETOP E SINAPI - ",Orçamento!$T$11) -> AGETOP E SINAPI - DESONERADA | D13: =Orçamento!$S$8 -> 2020-05-26 | E13: =Orçamento!$X$14 -> 970.52
A14: FILTRO
B15: SOMATÓRIO DE SERVIÇOS
A16: ↓ | B16: ITEM | C16: DESCRIÇÃO DOS SERVIÇOS | D16: PREÇO SEM BDI (R$) | E16: PREÇO COM BDI (R$) | F16: PARTIC. ( % )
A17: =IF(D17>0,"F","") ->  | B17: a. | C17: =Orçamento!P273 -> SERVIÇOS PRELIMINARES | D17: =Orçamento!S273 -> 0 | E17: =Orçamento!X273 -> 0 | F17: =Orçamento!AA273 -> 0
A18: =IF(D18>0,"F","") ->  | B18: b. | C18: =Orçamento!P274 -> TRANSPORTES | D18: =Orçamento!S274 -> 0 | E18: =Orçamento!X274 -> 0 | F18: =Orçamento!AA274 -> 0
B19: c. | C19: =Orçamento!P275 -> SERVIÇO EM TERRA | D19: =Orçamento!S275 -> 0 | E19: =Orçamento!X275 -> 0 | F19: =Orçamento!AA275 -> 0
B20: d. | C20: =Orçamento!P276 -> FUNDAÇÕES E SONDAGENS | D20: =Orçamento!S276 -> 0 | E20: =Orçamento!X276 -> 0 | F20: =Orçamento!AA276 -> 0
B21: e. | C21: =Orçamento!P277 -> ESTRUTURA | D21: =Orçamento!S277 -> 0 | E21: =Orçamento!X277 -> 0 | F21: =Orçamento!AA277 -> 0
B22: f. | C22: =Orçamento!P278 -> INSTALAÇÕES ELÉTRICAS | D22: =Orçamento!S278 -> 0 | E22: =Orçamento!X278 -> 0 | F22: =Orçamento!AA278 -> 0
B23: g. | C23: =Orçamento!P279 -> INSTALAÇÕES HIDROSSANITÁRIAS | D23: =Orçamento!S279 -> 0 | E23: =Orçamento!X279 -> 0 | F23: =Orçamento!AA279 -> 0
B24: h | C24: =Orçamento!P280 -> INSTALAÇÕES ESPECIAIS | D24: =Orçamento!S280 -> 0 | E24: =Orçamento!X280 -> 0 | F24: =Orçamento!AA280 -> 0
B25: i. | C25: =Orçamento!P281 -> ALVENARIAS E DIVISÓRIAS | D25: =Orçamento!S281 -> 0 | E25: =Orçamento!X281 -> 0 | F25: =Orçamento!AA281 -> 0
B26: j. | C26: =Orçamento!P282 -> ALVENARIA AUTO-PORTANTE | D26: =Orçamento!S282 -> 0 | E26: =Orçamento!X282 -> 0 | F26: =Orçamento!AA282 -> 0
B27: k. | C27: =Orçamento!P283 -> IMPERMEABILIZAÇÃO | D27: =Orçamento!S283 -> 0 | E27: =Orçamento!X283 -> 0 | F27: =Orçamento!AA283 -> 0
B28: l. | C28: =Orçamento!P284 -> ISOLAMENTO TÉRMICO E ACÚSTICO | D28: =Orçamento!S284 -> 0 | E28: =Orçamento!X284 -> 0 | F28: =Orçamento!AA284 -> 0
B29: m. | C29: =Orçamento!P285 -> ESTRUTURA DE MADEIRA | D29: =Orçamento!S285 -> 0 | E29: =Orçamento!X285 -> 0 | F29: =Orçamento!AA285 -> 0
B30: n. | C30: =Orçamento!P286 -> ESTRUTURAS METÁLICAS | D30: =Orçamento!S286 -> 0 | E30: =Orçamento!X286 -> 0 | F30: =Orçamento!AA286 -> 0
B31: o. | C31: =Orçamento!P287 -> COBERTURAS | D31: =Orçamento!S287 -> 0 | E31: =Orçamento!X287 -> 0 | F31: =Orçamento!AA287 -> 0
B32: p. | C32: =Orçamento!P288 -> ESQUADRIAS DE MADEIRA | D32: =Orçamento!S288 -> 0 | E32: =Orçamento!X288 -> 0 | F32: =Orçamento!AA288 -> 0
B33: q. | C33: =Orçamento!P289 -> ESQUADRIAS METÁLICAS | D33: =Orçamento!S289 -> 0 | E33: =Orçamento!X289 -> 0 | F33: =Orçamento!AA289 -> 0
B34: r. | C34: =Orçamento!P290 -> VIDROS | D34: =Orçamento!S290 -> 0 | E34: =Orçamento!X290 -> 0 | F34: =Orçamento!AA290 -> 0
B35: s. | C35: =Orçamento!P291 -> REVESTIMENTO DE PAREDE | D35: =Orçamento!S291 -> 0 | E35: =Orçamento!X291 -> 0 | F35: =Orçamento!AA291 -> 0
B36: t. | C36: =Orçamento!P292 -> FORROS | D36: =Orçamento!S292 -> 0 | E36: =Orçamento!X292 -> 0 | F36: =Orçamento!AA292 -> 0
B37: u. | C37: =Orçamento!P293 -> REVESTIMENTO DE PISO | D37: =Orçamento!S293 -> 0 | E37: =Orçamento!X293 -> 0 | F37: =Orçamento!AA293 -> 0
B38: v. | C38: =Orçamento!P294 -> FERRAGENS | D38: =Orçamento!S294 -> 0 | E38: =Orçamento!X294 -> 0 | F38: =Orçamento!AA294 -> 0
B39: w. | C39: =Orçamento!P295 -> MARCENARIA | D39: =Orçamento!S295 -> 0 | E39: =Orçamento!X295 -> 0 | F39: =Orçamento!AA295 -> 0
B40: x. | C40: =Orçamento!P296 -> ADMINISTRAÇÃO | D40: =Orçamento!S296 -> 0 | E40: =Orçamento!X296 -> 0 | F40: =Orçamento!AA296 -> 0
B41: y. | C41: =Orçamento!P297 -> PINTURA | D41: =Orçamento!S297 -> 0 | E41: =Orçamento!X297 -> 0 | F41: =Orçamento!AA297 -> 0
B42: z. | C42: =Orçamento!P298 -> DIVERSOS | D42: =Orçamento!S298 -> 0 | E42: =Orçamento!X298 -> 0 | F42: =Orçamento!AA298 -> 0
A43: F | B43: TOTAL GERAL DO ORÇAMENTO | D43: =SUM(D17:D42) -> 0 | E43: =SUM(E17:E42) -> 0 | F43: =SUM(F17:F42) -> 0
B45: (*) Para itens da AGETOP, os vidros não estão inclusos nas esquadrias e já foram considerados os custos de contramarco para as esquadrias de alumínio;

Sheet Cronog_60_Dias
B3: UNIDADE ESCOLAR | I3: PRAZO
B4: =Orçamento!$O$5 -> CENTRO DE ENSINO EM PERÍODO INTEGRAL JOSÉ EDUARDO DO COUTO | I4: 60 DIAS CORRIDOS
B6: OBRA | I6: DATA
B7: =Orçamento!$O$8 -> REFORMA | I7: =Orçamento!$S$8 -> 2020-05-26
B9: LOCAL | I9: ÁREA TOTAL CONSTRUÍDA (M²)
A10: FILTRO | B10: =Orçamento!$X$8 -> ITAGUARI | I10: =Orçamento!$X$14 -> 970.52
B12: CRONOGRAMA - FÍSICO FINANCEIRO
A13: ↓ | B13: CUSTO TOTAL: | C13: =D93 -> 0 | D13: VALOR | E13: Dias: | F13: 30 | J13: 60 | N13: TOTAL
B14: DESCRIÇÃO DOS SERVIÇOS | E14: % | F14: 1ª PARCELA | J14: 2ª PARCELA
A15: =IF(D15>0,"F","") ->  | B15: SERVIÇOS PRELIMINARES | D15: =Orçamento!X273 -> 0 | E15: =Orçamento!AA273 -> 0 | F15: =ROUND(F17*$D$15,2) -> 0 | J15: =ROUND(J17*$D$15,2) -> 0 | N15: =SUM(F15:M15) -> 0
A16: =IF(A15="F",A15,"") -> 
A17: =IF(A16="F",A16,"") ->  | F17: 1 | J17: =1-F17 -> 0 | N17: =IFERROR(E15/100,"") -> 0
A18: =IF(D18>0,"F","") ->  | B18: TRANSPORTES | D18: =Orçamento!X274 -> 0 | E18: =Orçamento!AA274 -> 0 | F18: =ROUND(F20*$D$18,2) -> 0 | J18: =ROUND(J20*$D$18,2) -> 0 | N18: =SUM(F18:M18) -> 0
A19: =IF(A18="F",A18,"") -> 
A20: =IF(A19="F",A19,"") ->  | F20: 0.48 | J20: =1-F20 -> 0.52 | N20: =IFERROR(E18/100,"") -> 0
A21: =IF(D21>0,"F","") ->  | B21: SERVIÇO EM TERRA | D21: =Orçamento!X275 -> 0 | E21: =Orçamento!AA275 -> 0 | F21: =ROUND(F23*$D$21,2) -> 0 | J21: =ROUND(J23*$D$21,2) -> 0 | N21: =SUM(F21:M21) -> 0
A22: =IF(A21="F",A21,"") -> 
A23: =IF(A22="F",A22,"") ->  | F23: 1 | J23: =1-F23 -> 0 | N23: =IFERROR(E21/100,"") -> 0
A24: =IF(D24>0,"F","") ->  | B24: FUNDAÇÕES E SONDAGENS | D24: =Orçamento!X276 -> 0 | E24: =Orçamento!AA276 -> 0 | F24: =ROUND(F26*$D$24,2) -> 0 | J24: =ROUND(J26*$D$24,2) -> 0 | N24: =SUM(F24:M24) -> 0
A25: =IF(A24="F",A24,"") -> 
A26: =IF(A25="F",A25,"") ->  | F26: 1 | J26: =1-F26 -> 0 | N26: =IFERROR(E24/100,"") -> 0
A27: =IF(D27>0,"F","") ->  | B27: ESTRUTURA | D27: =Orçamento!X277 -> 0 | E27: =Orçamento!AA277 -> 0 | F27: =ROUND(F29*$D$27,2) -> 0 | J27: =ROUND(J29*$D$27,2) -> 0 | N27: =SUM(F27:M27) -> 0
A28: =IF(A27="F",A27,"") -> 
A29: =IF(A28="F",A28,"") ->  | F29: 0.49 | J29: =1-F29 -> 0.51 | N29: =IFERROR(E27/100,"") -> 0
A30: =IF(D30>0,"F","") ->  | B30: INST.ELET/TELEFÔNICA/CABEAMENTO ESTRUTURADO | D30: =Orçamento!X278 -> 0 | E30: =Orçamento!AA278 -> 0 | F30: =ROUND(F32*$D$30,2) -> 0 | J30: =ROUND(J32*$D$30,2) -> 0 | N30: =SUM(F30:M30) -> 0
A31: =IF(A30="F",A30,"") -> 
A32: =IF(A31="F",A31,"") ->  | F32: 0.4 | J32: =1-F32 -> 0.6 | N32: =IFERROR(E30/100,"") -> 0
A33: =IF(D33>0,"F","") ->  | B33: INSTALAÇÕES HIDROSSANITÁRIAS | D33: =Orçamento!X279 -> 0 | E33: =Orçamento!AA279 -> 0 | F33: =ROUND(F35*$D$33,2) -> 0 | J33: =ROUND(J35*$D$33,2) -> 0 | N33: =SUM(F33:M33) -> 0
A34: =IF(A33="F",A33,"") -> 
A35: =IF(A34="F",A34,"") ->  | F35: 0.48 | J35: =1-F35 -> 0.52 | N35: =IFERROR(E33/100,"") -> 0
A36: =IF(D36>0,"F","") ->  | B36: INSTALAÇÕES ESPECIAIS | D36: =Orçamento!X280 -> 0 | E36: =Orçamento!AA280 -> 0 | F36: =ROUND(F38*$D$36,2) -> 0 | J36: =ROUND(J38*$D$36,2) -> 0 | N36: =SUM(F36:M36) -> 0
A37: =IF(A36="F",A36,"") -> 
A38: =IF(A37="F",A37,"") ->  | F38: 1 | J38: =1-F38 -> 0 | N38: =IFERROR(E36/100,"") -> 0
A39: =IF(D39>0,"F","") ->  | B39: ALVENARIA E DIVISÓRIAS | D39: =Orçamento!X281 -> 0 | E39: =Orçamento!AA281 -> 0 | F39: =ROUND(F41*$D$39,2) -> 0 | J39: =ROUND(J41*$D$39,2) -> 0 | N39: =SUM(F39:M39) -> 0
A40: =IF(A39="F",A39,"") -> 
A41: =IF(A40="F",A40,"") ->  | F41: 1 | J41: =1-F41 -> 0 | N41: =IFERROR(E39/100,"") -> 0
A42: =IF(D42>0,"F","") ->  | B42: ALVENARIA AUTO-PORTANTE | D42: =Orçamento!X282 -> 0 | E42: =Orçamento!AA282 -> 0 | F42: =ROUND(F44*$D$42,2) -> 0 | J42: =ROUND(J44*$D$42,2) -> 0 | N42: =SUM(F42:M42) -> 0
A43: =IF(A42="F",A42,"") -> 
A44: =IF(A43="F",A43,"") ->  | F44: 1 | J44: =1-F44 -> 0 | N44: =IFERROR(E42/100,"") -> 0
A45: =IF(D45>0,"F","") ->  | B45: IMPERMEABILIZAÇÃO | D45: =Orçamento!X283 -> 0 | E45: =Orçamento!AA283 -> 0 | F45: =ROUND(F47*$D$45,2) -> 0 | J45: =ROUND(J47*$D$45,2) -> 0 | N45: =SUM(F45:M45) -> 0
A46: =IF(A45="F",A45,"") -> 
A47: =IF(A46="F",A46,"") ->  | F47: 1 | J47: =1-F47 -> 0 | N47: =IFERROR(E45/100,"") -> 0
A48: =IF(D48>0,"F","") ->  | B48: ISOLAMENTO TÉRMICO E ACÚSTICO | D48: =Orçamento!X284 -> 0 | E48: =Orçamento!AA284 -> 0 | F48: =ROUND(F50*$D$48,2) -> 0 | J48: =ROUND(J50*$D$48,2) -> 0 | N48: =SUM(F48:M48) -> 0
A49: =IF(A48="F",A48,"") -> 
A50: =IF(A49="F",A49,"") ->  | F50: 0.5 | J50: =1-F50 -> 0.5 | N50: =IFERROR(E48/100,"") -> 0
A51: =IF(D51>0,"F","") ->  | B51: ESTRUTURA DE MADEIRA | D51: =Orçamento!X285 -> 0 | E51: =Orçamento!AA285 -> 0 | F51: =ROUND(F53*$D$51,2) -> 0 | J51: =ROUND(J53*$D$51,2) -> 0 | N51: =SUM(F51:M51) -> 0
A52: =IF(A51="F",A51,"") -> 
A53: =IF(A52="F",A52,"") ->  | F53: 0.4 | J53: =1-F53 -> 0.6 | N53: =IFERROR(E51/100,"") -> 0
A54: =IF(D54>0,"F","") ->  | B54: ESTRUTURA METÁLICA | D54: =Orçamento!X286 -> 0 | E54: =Orçamento!AA286 -> 0 | F54: =ROUND(F56*$D$54,2) -> 0 | J54: =ROUND(J56*$D$54,2) -> 0 | N54: =SUM(F54:M54) -> 0
A55: =IF(A54="F",A54,"") -> 
A56: =IF(A55="F",A55,"") ->  | F56: 0.35 | J56: =1-F56 -> 0.65 | N56: =IFERROR(E54/100,"") -> 0
A57: =IF(D57>0,"F","") ->  | B57: COBERTURAS | D57: =Orçamento!X287 -> 0 | E57: =Orçamento!AA287 -> 0 | F57: =ROUND(F59*$D$57,2) -> 0 | J57: =ROUND(J59*$D$57,2) -> 0 | N57: =SUM(F57:M57) -> 0
A58: =IF(A57="F",A57,"") -> 
A59: =IF(A58="F",A58,"") ->  | F59: 0 | J59: =1-F59 -> 1 | N59: =IFERROR(E57/100,"") -> 0
A60: =IF(D60>0,"F","") ->  | B60: ESQUADRIAS DE MADEIRA | D60: =Orçamento!X288 -> 0 | E60: =Orçamento!AA288 -> 0 | F60: =ROUND(F62*$D$60,2) -> 0 | J60: =ROUND(J62*$D$60,2) -> 0 | N60: =SUM(F60:M60) -> 0
A61: =IF(A60="F",A60,"") -> 
A62: =IF(A61="F",A61,"") ->  | F62: 0.54 | J62: =1-F62 -> 0.46 | N62: =IFERROR(E60/100,"") -> 0
A63: =IF(D63>0,"F","") ->  | B63: ESQUADRIAS METÁLICAS | D63: =Orçamento!X289 -> 0 | E63: =Orçamento!AA289 -> 0 | F63: =ROUND(F65*$D$63,2) -> 0 | J63: =ROUND(J65*$D$63,2) -> 0 | N63: =SUM(F63:M63) -> 0
A64: =IF(A63="F",A63,"") -> 
A65: =IF(A64="F",A64,"") ->  | F65: 0.49 | J65: =1-F65 -> 0.51 | N65: =IFERROR(E63/100,"") -> 0
A66: =IF(D66>0,"F","") ->  | B66: VIDROS | D66: =Orçamento!X290 -> 0 | E66: =Orçamento!AA290 -> 0 | F66: =ROUND(F68*$D$66,2) -> 0 | J66: =ROUND(J68*$D$66,2) -> 0 | N66: =SUM(F66:M66) -> 0
A67: =IF(A66="F",A66,"") -> 
A68: =IF(A67="F",A67,"") ->  | F68: 0 | J68: =1-F68 -> 1 | N68: =IFERROR(E66/100,"") -> 0
A69: =IF(D69>0,"F","") ->  | B69: REVESTIMENTO DE PAREDE | D69: =Orçamento!X291 -> 0 | E69: =Orçamento!AA291 -> 0 | F69: =ROUND(F71*$D$69,2) -> 0 | J69: =ROUND(J71*$D$69,2) -> 0 | N69: =SUM(F69:M69) -> 0
A70: =IF(A69="F",A69,"") -> 
A71: =IF(A70="F",A70,"") ->  | F71: 0.32 | J71: =1-F71 -> 0.68 | N71: =IFERROR(E69/100,"") -> 0
A72: =IF(D72>0,"F","") ->  | B72: FORROS | D72: =Orçamento!X292 -> 0 | E72: =Orçamento!AA292 -> 0 | F72: =ROUND(F74*$D$72,2) -> 0 | J72: =ROUND(J74*$D$72,2) -> 0 | N72: =SUM(F72:M72) -> 0
A73: =IF(A72="F",A72,"") -> 
A74: =IF(A73="F",A73,"") ->  | F74: 0.24 | J74: =1-F74 -> 0.76 | N74: =IFERROR(E72/100,"") -> 0
A75: =IF(D75>0,"F","") ->  | B75: REVESTIMENTO DE PISO | D75: =Orçamento!X293 -> 0 | E75: =Orçamento!AA293 -> 0 | F75: =ROUND(F77*$D$75,2) -> 0 | J75: =ROUND(J77*$D$75,2) -> 0 | N75: =SUM(F75:M75) -> 0
A76: =IF(A75="F",A75,"") -> 
A77: =IF(A76="F",A76,"") ->  | F77: 0.49 | J77: =1-F77 -> 0.51 | N77: =IFERROR(E75/100,"") -> 0
A78: =IF(D78>0,"F","") ->  | B78: FERRAGENS | D78: =Orçamento!X294 -> 0 | E78: =Orçamento!AA294 -> 0 | F78: =ROUND(F80*$D$78,2) -> 0 | J78: =ROUND(J80*$D$78,2) -> 0 | N78: =SUM(F78:M78) -> 0
A79: =IF(A78="F",A78,"") -> 
A80: =IF(A79="F",A79,"") ->  | F80: 0 | J80: =1-F80 -> 1 | N80: =IFERROR(E78/100,"") -> 0
A81: =IF(D81>0,"F","") ->  | B81: MARCENARIA | D81: =Orçamento!X295 -> 0 | E81: =Orçamento!AA295 -> 0 | F81: =ROUND(F83*$D$81,2) -> 0 | J81: =ROUND(J83*$D$81,2) -> 0 | N81: =SUM(F81:M81) -> 0
A82: =IF(A81="F",A81,"") -> 
A83: =IF(A82="F",A82,"") ->  | F83: 0.4 | J83: =1-F83 -> 0.6 | N83: =IFERROR(E81/100,"") -> 0
A84: =IF(D84>0,"F","") ->  | B84: ADMINISTRAÇÃO - MENSALISTAS | D84: =Orçamento!X296 -> 0 | E84: =Orçamento!AA296 -> 0 | F84: =ROUND(F86*$D$84,2) -> 0 | J84: =ROUND(J86*$D$84,2) -> 0 | N84: =SUM(F84:M84) -> 0
A85: =IF(A84="F",A84,"") -> 
A86: =IF(A85="F",A85,"") ->  | F86: 0.49 | J86: =1-F86 -> 0.51 | N86: =IFERROR(E84/100,"") -> 0
A87: =IF(D87>0,"F","") ->  | B87: PINTURA | D87: =Orçamento!X297 -> 0 | E87: =Orçamento!AA297 -> 0 | F87: =ROUND(F89*$D$87,2) -> 0 | J87: =ROUND(J89*$D$87,2) -> 0 | N87: =SUM(F87:M87) -> 0
A88: =IF(A87="F",A87,"") -> 
A89: =IF(A88="F",A88,"") ->  | F89: 0 | J89: =1-F89 -> 1 | N89: =IFERROR(E87/100,"") -> 0
A90: =IF(D90>0,"F","") ->  | B90: DIVERSOS | D90: =Orçamento!X298 -> 0 | E90: =Orçamento!AA298 -> 0 | F90: =ROUND(F92*$D$90,2) -> 0 | J90: =ROUND(J92*$D$90,2) -> 0 | N90: =SUM(F90:M90) -> 0
A91: =IF(A90="F",A90,"") -> 
A92: =IF(A91="F",A91,"") ->  | F92: 0.46 | J92: =1-F92 -> 0.54 | N92: =IFERROR(E90/100,"") -> 0
A93: F | B93: CUSTO DO ORÇAMENTO | D93: =SUM(D15:D92) -> 0 | E93: =SUM(E15:E92) -> 0 | F93: =F15+F18+F21+F24+F27+F30+F33+F36+F39+F42+F45+F48+F51+F54+F57+F60+F63+F66+F69+F72+F75+F78+F81+F84+F87+F90 -> 0 | J93: =J15+J18+J21+J24+J27+J30+J33+J36+J39+J42+J45+J48+J51+J54+J57+J60+J63+J66+J69+J72+J75+J78+J81+J84+J87+J90 -> 0 | N93: =N15+N18+N21+N24+N27+N30+N33+N36+N39+N42+N45+N48+N51+N54+N57+N60+N63+N66+N69+N72+N75+N78+N81+N84+N87+N90 -> 0
A94: F | B94: PERCENTUAIS: | F94: =IFERROR(F93/D93,"") ->  | J94: =IFERROR(J93/D93,"") ->  | N94: =SUM(F94:M94) -> 0
A95: F | B95: TOTAIS ACUMULADOS: | F95: =F93 -> 0 | J95: =F95+J93 -> 0
A96: F | B96: PERCENTUAIS ACUMULADOS: | F96: =F94 ->  | J96: =IFERROR(F96+J94,"") -> 
A97: F
A98: F | B98: OBSERVAÇÕES:
A99: F | B99: Os pagamentos somente poderão ser efetuados mediante medição e atesto pelos técnicos da Secretaria da Educação.

Sheet Composição BDI
A3: UNIDADE ESCOLAR
A4: CENTRO DE ENSINO EM PERÍODO INTEGRAL JOSÉ EDUARDO DO COUTO
A6: OBRA
A7: REFORMA
A9: ENDEREÇO
A10: RUA JOSE FERNANDES CARVALHARES 197 Nº 197 , CENTRO , CEP: 7665-000
A12: CIDADE
A13: ITAGUARI
A15: CRE
A16: CRE-ITABERAI
A18: DETALHAMENTO DA COMPOSIÇÃO DE BDI
A19: COMPOSIÇÃO BDI PARA OBRAS CIVIS
A20: DESCRIÇÃO | B20: COEF. | C20: TAXA % (a.m) | D20: % no preço de venda
A21: 1) COFINS | B21: 1 | C21: 0.03 | D21: 0.03
A22: 2) PIS | B22: 1 | C22: 0.0065 | D22: 0.0065
A23: 3) ISSQN | B23: 1 | C23: 0.03 | D23: 0.03
A24: 4) CPRB | B24: 1 | C24: 0.045 | D24: 0.045
A25: 5) Administração Central | B25: 1 | C25: 0.0312 | D25: 0.0312
A26: 6) Despesas Financeiras | B26: 1 | C26: 0.0056 | D26: 0.0056
A27: 7) Seguros + Garantias | B27: 1 | C27: 0.0012 | D27: 0.0012
A28: 8) Risco | B28: 1 | C28: 0.0097 | D28: 0.0097
A29: 9) Lucro | B29: 1 | C29: 0.072 | D29: 0.072
A30: BDI - FINAL | D30: 0.2643636857
A32: Notas:
A33: (1) e (2) Alíquota definida por lei.
A34: (3) Alíquota e base de cálculo definidas pela legislação municipal.
A35: (4) Alíquota definida pelas leis 12.546/11, 12844/13 e 13.161/15 (CPRB – contribuição previdenciária sobre a receita bruta).
A36: (5) Valores definidos a partir dos limites no Acórdão nº 2.622/2013 - TCU – Plenário. Valores entre o 1º e 3º quartis.
A37: (6) Valor calculado pela expressão matemática do acórdão 2.369/2011 – TCU – Plenário e disponibilizado pela AGETOP em dezembro de 2018. (Foi utilizado para o cálculo a média da Taxa SELIC no período de 11/2017 a 10/2018)
A39: (7) Valores definidos pela AGETOP a partir dos limites no Acórdão nº 2.622/2013 - TCU – Plenário. Valores médios. Observação da AGETOP: (Seguros contra erros de execução, incêndio e explosão, danos da natureza (vendaval, destelhamento, alagamento, inundação, desmoronamento, geadas etc.), emprego de material defeituoso ou inadequado, roubo e/ou furto qualificado, quebra de equipamentos, desmoronamento de estrutura, nas modalidades de Obras Civis em Construção (OCC); Instalação e Montagem (IM); e Obras Civis em Construção e Instalação e Montagem (OCC/IM). Bem como coberturas adicionais para ampliação dessas coberturas básicas, como: cobertura de responsabilidade civil geral, cobertura de responsabilidade civil cruzada, cobertura de despesas extraordinárias, cobertura de tumultos, cobertura de desentulho do local, cobertura de riscos do fabricante, dentre outras, incluindo o seguro de vida em grupo regido pela convenção coletiva dos trabalhadores na indústria da construção civil). A partir de 24/02/2015 por intermédio da Portaria 449/2015 a Presidência da AGETOP, na pessoa do Senhor Jayme Eduardo Rincon, determinou a exclusão dos valores referentes aos Seguros de Risco de Engenharia e Responsabilidade Civil do Profissional na composição do cálculo do B.D.I..
A40: (8) Valores definidos a partir dos limites no Acórdão nº 2.622/2013 - TCU – Plenário. Valores entre 1º e 3° quartis.
A41: (9) Valores definidos a partir dos limites definidos no Acórdão nº 2.622/2013 - TCU – Plenário. Valores adotados e praticados no mercado ( “ ex ante ” ) ou aqueles entre os 1º e 3º quartis.
A43: (*) A fórmula para estipulação da taxa de BDI estimado adotado é a mesma que foi aplicada para a obtenção das tabelas contidas no Acórdão n. 2.622/2013 – TCUPlenário
A45: Obs.: Para obras com valores superiores a R$ 20.000.000,00 sugere-se recalcular o BDI, dimensionando as taxas de administração central e lucro para patamares inferiores ao estipulado acima.

Sheet Relatório CENTRAL
B3: UNIDADE ESCOLAR | D3: CIDADE
B4: =Orçamento!$O$5 -> CENTRO DE ENSINO EM PERÍODO INTEGRAL JOSÉ EDUARDO DO COUTO | D4: =Orçamento!$X$8 -> ITAGUARI
B6: OBRA | D6: CRE
B7: =Orçamento!$O$8 -> REFORMA | D7: =Orçamento!$O$11 -> CRE-ITABERAI
B9: ENDEREÇO | D9: DATA
A10: FILTRO | B10: =Orçamento!$R$11 -> RUA JOSE FERNANDES CARVALHARES 197 Nº 197 , CENTRO , CEP: 7665-000 | D10: =Orçamento!$S$8 -> 2020-05-26
B12: RELATÓRIO CENTRAL
A13: ↓ | B13: CÓDIGO | C13: ETAPA | D13: PREÇO (R$) C/ BDI | E13: PARTIC ( % )
A14: =IF(D14>0,"F","") ->  | B14: =Orçamento!O273 -> a. | C14: =Orçamento!P273 -> SERVIÇOS PRELIMINARES | D14: =Orçamento!X273 -> 0 | E14: =Orçamento!AA273 -> 0
A15: =IF(D15>0,"F","") ->  | B15: =Orçamento!O274 -> b. | C15: =Orçamento!P274 -> TRANSPORTES | D15: =Orçamento!X274 -> 0 | E15: =Orçamento!AA274 -> 0
B16: =Orçamento!O275 -> c. | C16: =Orçamento!P275 -> SERVIÇO EM TERRA | D16: =Orçamento!X275 -> 0 | E16: =Orçamento!AA275 -> 0
B17: =Orçamento!O276 -> d. | C17: =Orçamento!P276 -> FUNDAÇÕES E SONDAGENS | D17: =Orçamento!X276 -> 0 | E17: =Orçamento!AA276 -> 0
B18: =Orçamento!O277 -> e. | C18: =Orçamento!P277 -> ESTRUTURA | D18: =Orçamento!X277 -> 0 | E18: =Orçamento!AA277 -> 0
B19: =Orçamento!O278 -> f. | C19: =Orçamento!P278 -> INSTALAÇÕES ELÉTRICAS | D19: =Orçamento!X278 -> 0 | E19: =Orçamento!AA278 -> 0
B20: =Orçamento!O279 -> g. | C20: =Orçamento!P279 -> INSTALAÇÕES HIDROSSANITÁRIAS | D20: =Orçamento!X279 -> 0 | E20: =Orçamento!AA279 -> 0
B21: =Orçamento!O280 -> h | C21: =Orçamento!P280 -> INSTALAÇÕES ESPECIAIS | D21: =Orçamento!X280 -> 0 | E21: =Orçamento!AA280 -> 0
B22: =Orçamento!O281 -> i. | C22: =Orçamento!P281 -> ALVENARIAS E DIVISÓRIAS | D22: =Orçamento!X281 -> 0 | E22: =Orçamento!AA281 -> 0
B23: =Orçamento!O282 -> j. | C23: =Orçamento!P282 -> ALVENARIA AUTO-PORTANTE | D23: =Orçamento!X282 -> 0 | E23: =Orçamento!AA282 -> 0
B24: =Orçamento!O283 -> k. | C24: =Orçamento!P283 -> IMPERMEABILIZAÇÃO | D24: =Orçamento!X283 -> 0 | E24: =Orçamento!AA283 -> 0
B25: =Orçamento!O284 -> l. | C25: =Orçamento!P284 -> ISOLAMENTO TÉRMICO E ACÚSTICO | D25: =Orçamento!X284 -> 0 | E25: =Orçamento!AA284 -> 0
B26: =Orçamento!O285 -> m. | C26: =Orçamento!P285 -> ESTRUTURA DE MADEIRA | D26: =Orçamento!X285 -> 0 | E26: =Orçamento!AA285 -> 0
B27: =Orçamento!O286 -> n. | C27: =Orçamento!P286 -> ESTRUTURAS METÁLICAS | D27: =Orçamento!X286 -> 0 | E27: =Orçamento!AA286 -> 0
B28: =Orçamento!O287 -> o. | C28: =Orçamento!P287 -> COBERTURAS | D28: =Orçamento!X287 -> 0 | E28: =Orçamento!AA287 -> 0
B29: =Orçamento!O288 -> p. | C29: =Orçamento!P288 -> ESQUADRIAS DE MADEIRA | D29: =Orçamento!X288 -> 0 | E29: =Orçamento!AA288 -> 0
B30: =Orçamento!O289 -> q. | C30: =Orçamento!P289 -> ESQUADRIAS METÁLICAS | D30: =Orçamento!X289 -> 0 | E30: =Orçamento!AA289 -> 0
B31: =Orçamento!O290 -> r. | C31: =Orçamento!P290 -> VIDROS | D31: =Orçamento!X290 -> 0 | E31: =Orçamento!AA290 -> 0
B32: =Orçamento!O291 -> s. | C32: =Orçamento!P291 -> REVESTIMENTO DE PAREDE | D32: =Orçamento!X291 -> 0 | E32: =Orçamento!AA291 -> 0
B33: =Orçamento!O292 -> t. | C33: =Orçamento!P292 -> FORROS | D33: =Orçamento!X292 -> 0 | E33: =Orçamento!AA292 -> 0
B34: =Orçamento!O293 -> u. | C34: =Orçamento!P293 -> REVESTIMENTO DE PISO | D34: =Orçamento!X293 -> 0 | E34: =Orçamento!AA293 -> 0
B35: =Orçamento!O294 -> v. | C35: =Orçamento!P294 -> FERRAGENS | D35: =Orçamento!X294 -> 0 | E35: =Orçamento!AA294 -> 0
B36: =Orçamento!O295 -> w. | C36: =Orçamento!P295 -> MARCENARIA | D36: =Orçamento!X295 -> 0 | E36: =Orçamento!AA295 -> 0
B37: =Orçamento!O296 -> x. | C37: =Orçamento!P296 -> ADMINISTRAÇÃO | D37: =Orçamento!X296 -> 0 | E37: =Orçamento!AA296 -> 0
B38: =Orçamento!O297 -> y. | C38: =Orçamento!P297 -> PINTURA | D38: =Orçamento!X297 -> 0 | E38: =Orçamento!AA297 -> 0
B39: =Orçamento!O298 -> z. | C39: =Orçamento!P298 -> DIVERSOS | D39: =Orçamento!X298 -> 0 | E39: =Orçamento!AA298 -> 0
A40: F | B40: TOTAL GERAL DO ORÇAMENTO (R$) C/BDI | D40: =SUM(D14:D39) -> 0 | E40: =SUM(E14:E39) -> 0

Sheet Parc Maior Relev
B3: UNIDADE ESCOLAR | E3: CÓDIGO INEP
B4: =Orçamento!$O$5 -> CENTRO DE ENSINO EM PERÍODO INTEGRAL JOSÉ EDUARDO DO COUTO | E4: =Orçamento!$X$5 -> 52024148
B6: OBRA | E6: CIDADE
B7: =Orçamento!$O$8 -> REFORMA | E7: =Orçamento!$X$8 -> ITAGUARI
B9: CRE | E9: ÁREA TOTAL CONSTRUÍDA (M²)
B10: =Orçamento!$O$11 -> CRE-ITABERAI | E10: =Orçamento!$X$14 -> 970.52
A12: FILTRO | B12: PARCELA DE MAIOR RELEVÂNCIA
A13: =IF(G14>0,"F","") ->  | B13: CÓDIGO | C13: SERVIÇO | D13: DESCRIÇÃO | E13: UNID | F13: QUANT | G13: PARC. MAIOR RELEV (100%)
A14: =IF(G14>0,"F","") ->  | B14: f. | C14: INSTALAÇÕES ELÉTRICAS | D14: SUBESTAÇÃO | E14: KVA | F14: =SUMIF(Orçamento!$R$21:$R$254,'Parc Maior Relev'!D14,Orçamento!$T$21:$T$254) -> 0 | G14: =F14 -> 0
A15: =IF(SUM(G16:G30)>0,"F","") -> F | B15: CÓDIGO | C15: SERVIÇO | D15: DESCRIÇÃO | E15: UNID | F15: QUANT | G15: PARC. MAIOR RELEV (50%)
A16: =IF(G16>0,"F","") ->  | B16: e. | C16: ESTRUTURA | D16: CONCRETO | E16: M3 | F16: =SUMIF(Orçamento!$R$21:$R$254,'Parc Maior Relev'!D16,Orçamento!$T$21:$T$254) -> 0 | G16: =F16*0.5 -> 0
A17: =IF(G17>0,"F","") -> F | B17: f. | C17: INSTALAÇÕES ELÉTRICAS | D17: INSTALAÇÕES ELÉTRICAS | E17: KVA | F17: 62.97 | G17: =F17*0.5 -> 31.485
A18: =IF(G18>0,"F","") ->  | B18: o. | C18: COBERTURAS | D18: COBERTURA CERÂMICA | E18: M2 | F18: =SUMIF(Orçamento!$R$21:$R$254,'Parc Maior Relev'!D18,Orçamento!$T$21:$T$254) -> 0 | G18: 0
B19: o. | C19: COBERTURAS | D19: COBERTURA COM TELHA METÁLICA | E19: M2 | F19: =SUMIF(Orçamento!$R$21:$R$254,'Parc Maior Relev'!D19,Orçamento!$T$21:$T$254) -> 0 | G19: 0
B20: s. | C20: REVESTIMENTO DE PAREDE | D20: CHAPISCO | E20: M2 | F20: =SUMIF(Orçamento!$R$21:$R$254,'Parc Maior Relev'!D20,Orçamento!$T$21:$T$254) -> 0 | G20: 0
B21: s. | C21: REVESTIMENTO DE PAREDE | D21: REBOCO | E21: M2 | F21: =SUMIF(Orçamento!$R$21:$R$254,'Parc Maior Relev'!D21,Orçamento!$T$21:$T$254) -> 0 | G21: 0
B22: s. | C22: REVESTIMENTO DE PAREDE | D22: REVESTIMENTO CERÂMICO | E22: M2 | F22: =SUMIF(Orçamento!$R$21:$R$254,'Parc Maior Relev'!D22,Orçamento!$T$21:$T$254) -> 0 | G22: 0
B23: t. | C23: FORROS | D23: FORRO DE GESSO | E23: M2 | F23: =SUMIF(Orçamento!$R$21:$R$254,'Parc Maior Relev'!D23,Orçamento!$T$21:$T$254) -> 0 | G23: 0
B24: t. | C24: FORROS | D24: FORRO DE PVC | E24: M2 | F24: =SUMIF(Orçamento!$R$21:$R$254,'Parc Maior Relev'!D24,Orçamento!$T$21:$T$254) -> 0 | G24: 0
B25: t. | C25: FORROS | D25: FORRO DE GESSO ACARTONADO | E25: M2 | F25: =SUMIF(Orçamento!$R$21:$R$254,'Parc Maior Relev'!D25,Orçamento!$T$21:$T$254) -> 0 | G25: 0
B26: u. | C26: REVESTIMENTO DE PISO | D26: PISO DE GRANITINA | E26: M2 | F26: =SUMIF(Orçamento!$R$21:$R$254,'Parc Maior Relev'!D26,Orçamento!$T$21:$T$254) -> 0 | G26: 0
B27: u. | C27: REVESTIMENTO DE PISO | D27: PISO LAMINADO | E27: M2 | F27: =SUMIF(Orçamento!$R$21:$R$254,'Parc Maior Relev'!D27,Orçamento!$T$21:$T$254) -> 0 | G27: 0
B28: u. | C28: REVESTIMENTO DE PISO | D28: PISO DE CONCRETO DESEMPENADO | E28: M2 | F28: =SUMIF(Orçamento!$R$21:$R$254,'Parc Maior Relev'!D28,Orçamento!$T$21:$T$254) -> 0 | G28: 0
B29: u. | C29: REVESTIMENTO DE PISO | D29: PISO CERÂMICO | E29: M2 | F29: =SUMIF(Orçamento!$R$21:$R$254,'Parc Maior Relev'!D29,Orçamento!$T$21:$T$254) -> 0 | G29: 0
B30: y. | C30: PINTURA | D30: PINTURA | E30: M2 | F30: =SUMIF(Orçamento!$R$21:$R$254,'Parc Maior Relev'!D30,Orçamento!$T$21:$T$254) -> 0 | G30: 0
A31: F
A32: F | B32: (*) Para os fins do inciso I dp § 1º do Art. 30 da Lei Federal 8.666/93, são consideradas parcelas de maior relevância técnica as execuções apresentadas
A33: F
